Department Family,Entity,Date Paid,Expense Type,Expense Area,Supplier,Transaction Number,Amount (�),Supplier VAT Registration Number
BEIS,Met Office,2020-04-30,13 MISCELLANEOUS,BUSINESS GROUP,ARTHUR J. GALLAGHER INSURANCE BROKERS LIMITED,441671,4000,GB484746209
BEIS,Met Office,2020-04-23,13 MISCELLANEOUS,BUSINESS GROUP,ARTHUR J. GALLAGHER INSURANCE BROKERS LIMITED,441370,6720,GB484746209
BEIS,Met Office,2020-04-16,11 SERVICES,BUSINESS GROUP,CACI LTD,440992,14099.75,380609841
BEIS,Met Office,2020-04-02,03 STAFF COSTS T&S,BUSINESS GROUP,CARTUS LTD,439750,250,768489458
BEIS,Met Office,2020-04-02,03 STAFF COSTS T&S,BUSINESS GROUP,CARTUS LTD,439752,250,768489458
BEIS,Met Office,2020-04-16,11 SERVICES,BUSINESS GROUP,DECOM NORTH SEA,441234,1197,986674743
BEIS,Met Office,2020-04-02,11 SERVICES,BUSINESS GROUP,DRIVE CREATIVE STUDIO LTD,440418,3600,167656860
BEIS,Met Office,2020-04-09,SOFTWARE LICENCES,BUSINESS GROUP,Esri (Uk) Ltd,440694,26284,787430791
BEIS,Met Office,2020-04-09,05 CONSULTANTS,BUSINESS GROUP,GARTNER UK LTD,441031,48895,635878884
BEIS,Met Office,2020-04-02,04 CONTRACTORS,BUSINESS GROUP,HAYS SPECIALIST RECRUITMENT LTD,440401,545.08,773695871
BEIS,Met Office,2020-04-30,04 CONTRACTORS,BUSINESS GROUP,HAYS SPECIALIST RECRUITMENT LTD,441660,549.24,773695871
BEIS,Met Office,2020-04-23,04 CONTRACTORS,BUSINESS GROUP,HAYS SPECIALIST RECRUITMENT LTD,441386,732.32,773695871
BEIS,Met Office,2020-04-16,04 CONTRACTORS,BUSINESS GROUP,HAYS SPECIALIST RECRUITMENT LTD,441229,833,773695871
BEIS,Met Office,2020-04-09,04 CONTRACTORS,BUSINESS GROUP,HAYS SPECIALIST RECRUITMENT LTD,440809,866.58,773695871
BEIS,Met Office,2020-04-23,04 CONTRACTORS,BUSINESS GROUP,HAYS SPECIALIST RECRUITMENT LTD,441361,915.4,773695871
BEIS,Met Office,2020-04-02,04 CONTRACTORS,BUSINESS GROUP,HAYS SPECIALIST RECRUITMENT LTD,440671,1258,773695871
BEIS,Met Office,2020-04-16,04 CONTRACTORS,BUSINESS GROUP,HAYS SPECIALIST RECRUITMENT LTD,441030,1351.5,773695871
BEIS,Met Office,2020-04-02,04 CONTRACTORS,BUSINESS GROUP,HAYS SPECIALIST RECRUITMENT LTD,440674,1377,773695871
BEIS,Met Office,2020-04-02,04 CONTRACTORS,BUSINESS GROUP,HAYS SPECIALIST RECRUITMENT LTD,440622,1496,773695871
BEIS,Met Office,2020-04-09,04 CONTRACTORS,BUSINESS GROUP,HAYS SPECIALIST RECRUITMENT LTD,441022,1666,773695871
BEIS,Met Office,2020-04-02,04 CONTRACTORS,BUSINESS GROUP,HAYS SPECIALIST RECRUITMENT LTD,440695,1725.5,773695871
BEIS,Met Office,2020-04-02,11 SERVICES,BUSINESS GROUP,INK COPYWRITERS LTD,440686,4500,850847214
BEIS,Met Office,2020-04-16,06 ACCOMMODATION,BUSINESS GROUP,LHR BUSINESS SUPPORT CENTRE LTD,441020,25.22,927365404
BEIS,Met Office,2020-04-30,11 SERVICES,BUSINESS GROUP,MOMENTUM INCORPORATED,441639,6000,598958541
BEIS,Met Office,2020-04-30,11 SERVICES,BUSINESS GROUP,National Oceanography Centre,441654,7210,GB 338 5487 64
BEIS,Met Office,2020-04-23,11 SERVICES,BUSINESS GROUP,NTT DATA UK LTD,440969,1499.05,GB159334590
BEIS,Met Office,2020-04-02,04 CONTRACTORS,BUSINESS GROUP,OUTSOURCE UK LIMITED,440630,6129.07,576118722
BEIS,Met Office,2020-04-02,04 CONTRACTORS,BUSINESS GROUP,OUTSOURCE UK LIMITED,440637,6369.3,576118722
BEIS,Met Office,2020-04-02,04 CONTRACTORS,BUSINESS GROUP,OUTSOURCE UK LIMITED,440610,10615.5,576118722
BEIS,Met Office,2020-04-16,04 CONTRACTORS,BUSINESS GROUP,SOLOS CONSULTANTS LTD,441083,11235.5,812035476
BEIS,Met Office,2020-04-16,11 SERVICES,BUSINESS GROUP,SPOKE (INTERACTIVE) LTD,441257,700,840156451
BEIS,Met Office,2020-04-30,06 ACCOMMODATION,CHIEF FINANCIAL OFFICER,A & J GARDEN SERVICES LTD,441649,55,190817003
BEIS,Met Office,2020-04-30,06 ACCOMMODATION,CHIEF FINANCIAL OFFICER,A & J GARDEN SERVICES LTD,441649,72,190817003
BEIS,Met Office,2020-04-30,06 ACCOMMODATION,CHIEF FINANCIAL OFFICER,A & J GARDEN SERVICES LTD,441649,78,190817003
BEIS,Met Office,2020-04-30,06 ACCOMMODATION,CHIEF FINANCIAL OFFICER,A & J GARDEN SERVICES LTD,441649,78,190817003
BEIS,Met Office,2020-04-30,06 ACCOMMODATION,CHIEF FINANCIAL OFFICER,A & J GARDEN SERVICES LTD,441649,78,190817003
BEIS,Met Office,2020-04-30,06 ACCOMMODATION,CHIEF FINANCIAL OFFICER,A & J GARDEN SERVICES LTD,441649,78,190817003
BEIS,Met Office,2020-04-30,06 ACCOMMODATION,CHIEF FINANCIAL OFFICER,A & J GARDEN SERVICES LTD,441649,78,190817003
BEIS,Met Office,2020-04-30,06 ACCOMMODATION,CHIEF FINANCIAL OFFICER,A & J GARDEN SERVICES LTD,441649,78,190817003
BEIS,Met Office,2020-04-30,06 ACCOMMODATION,CHIEF FINANCIAL OFFICER,A & J GARDEN SERVICES LTD,441649,100,190817003
BEIS,Met Office,2020-04-30,06 ACCOMMODATION,CHIEF FINANCIAL OFFICER,A & J GARDEN SERVICES LTD,441649,100,190817003
BEIS,Met Office,2020-04-30,06 ACCOMMODATION,CHIEF FINANCIAL OFFICER,A & J GARDEN SERVICES LTD,441649,100,190817003
BEIS,Met Office,2020-04-30,06 ACCOMMODATION,CHIEF FINANCIAL OFFICER,A & J GARDEN SERVICES LTD,441649,100,190817003
BEIS,Met Office,2020-04-30,06 ACCOMMODATION,CHIEF FINANCIAL OFFICER,A & J GARDEN SERVICES LTD,441649,100,190817003
BEIS,Met Office,2020-04-30,06 ACCOMMODATION,CHIEF FINANCIAL OFFICER,A & J GARDEN SERVICES LTD,441649,100,190817003
BEIS,Met Office,2020-04-30,06 ACCOMMODATION,CHIEF FINANCIAL OFFICER,A & J GARDEN SERVICES LTD,441649,100,190817003
BEIS,Met Office,2020-04-30,06 ACCOMMODATION,CHIEF FINANCIAL OFFICER,A & J GARDEN SERVICES LTD,441649,165,190817003
BEIS,Met Office,2020-04-09,06 ACCOMMODATION,CHIEF FINANCIAL OFFICER,ABOVE THE REST COMMERCIAL CLEANING LTD,440839,565,166969348
BEIS,Met Office,2020-04-30,11 SERVICES,CHIEF FINANCIAL OFFICER,ALLSTAR BUSINESS SOLUTIONS LTD,441670,353.91,747880191
BEIS,Met Office,2020-04-09,11 SERVICES,CHIEF FINANCIAL OFFICER,ALLSTAR BUSINESS SOLUTIONS LTD,440996,1461.65,747880191
BEIS,Met Office,2020-04-09,11 SERVICES,CHIEF FINANCIAL OFFICER,ALPHABET (GB) LTD,441013,180.63,572417244
BEIS,Met Office,2020-04-09,11 SERVICES,CHIEF FINANCIAL OFFICER,ALPHABET (GB) LTD,441014,189.8,572417244
BEIS,Met Office,2020-04-09,06 ACCOMMODATION,CHIEF FINANCIAL OFFICER,ANGLIAN WATER BUSINESS NATIONAL LTD,440843,33.36,51406002
BEIS,Met Office,2020-04-02,13 MISCELLANEOUS,CHIEF FINANCIAL OFFICER,ANTRIM HILLS SPRING WATER CO LTD,440400,36,517173455
BEIS,Met Office,2020-04-16,11 SERVICES,CHIEF FINANCIAL OFFICER,ANVIL MOBILE LIMITED,441296,379.53,981686175
BEIS,Met Office,2020-04-09,06 ACCOMMODATION,CHIEF FINANCIAL OFFICER,Arqiva Ltd,440979,186,849750972
BEIS,Met Office,2020-04-23,13 MISCELLANEOUS,CHIEF FINANCIAL OFFICER,ARTHUR J. GALLAGHER INSURANCE BROKERS LIMITED,441371,7840,GB484746209
BEIS,Met Office,2020-04-23,13 MISCELLANEOUS,CHIEF FINANCIAL OFFICER,ARTHUR J. GALLAGHER INSURANCE BROKERS LIMITED,441368,50400,GB484746209
BEIS,Met Office,2020-04-15,06 ACCOMMODATION,CHIEF FINANCIAL OFFICER,BAE SYSTEMS (OPERATIONS) LTD,414650,-1415.41,641407169
BEIS,Met Office,2020-04-02,06 ACCOMMODATION,CHIEF FINANCIAL OFFICER,Belfast International Airport Ltd,440636,238.75,617777601
BEIS,Met Office,2020-04-09,06 ACCOMMODATION,CHIEF FINANCIAL OFFICER,Belfast International Airport Ltd,440753,5668.64,617777601
BEIS,Met Office,2020-04-09,06 ACCOMMODATION,CHIEF FINANCIAL OFFICER,Belfast International Airport Ltd,440940,23999.75,617777601
BEIS,Met Office,2020-04-16,06 ACCOMMODATION,CHIEF FINANCIAL OFFICER,BROXTOWE BOROUGH COUNCIL,440842,239.98,118033013
BEIS,Met Office,2020-04-23,11 SERVICES,CHIEF FINANCIAL OFFICER,BT CONFERENCING,441337,268.38,245719348
BEIS,Met Office,2020-04-30,11 SERVICES,CHIEF FINANCIAL OFFICER,BT GLOBAL SERVICES,441651,355.82,245719348
BEIS,Met Office,2020-04-02,11 SERVICES,CHIEF FINANCIAL OFFICER,BT GLOBAL SERVICES,440326,15290.92,245719348
BEIS,Met Office,2020-04-09,11 SERVICES,CHIEF FINANCIAL OFFICER,BT GLOBAL SERVICES,440728,17901.52,245719348
BEIS,Met Office,2020-04-02,06 ACCOMMODATION,CHIEF FINANCIAL OFFICER,BUSINESS STREAM,440441,178.21,945850885
BEIS,Met Office,2020-04-23,06 ACCOMMODATION,CHIEF FINANCIAL OFFICER,BUSINESS SUPPORT CENTRE LTD,441341,1827.84,927365208
BEIS,Met Office,2020-04-23,06 ACCOMMODATION,CHIEF FINANCIAL OFFICER,CALOR GAS LIMITED,441570,34.25,207610984
BEIS,Met Office,2020-04-23,06 ACCOMMODATION,CHIEF FINANCIAL OFFICER,CALOR GAS LIMITED,441571,34.25,207610984
BEIS,Met Office,2020-04-23,06 ACCOMMODATION,CHIEF FINANCIAL OFFICER,CALOR GAS LIMITED,441598,34.25,207610984
BEIS,Met Office,2020-04-23,06 ACCOMMODATION,CHIEF FINANCIAL OFFICER,CALOR GAS LIMITED,441487,149.91,207610984
BEIS,Met Office,2020-04-02,06 ACCOMMODATION,CHIEF FINANCIAL OFFICER,CALOR GAS LIMITED,440363,435.32,207610984
BEIS,Met Office,2020-04-23,13 MISCELLANEOUS,CHIEF FINANCIAL OFFICER,CANON UK LTD,441285,1396.22,523797128
BEIS,Met Office,2020-04-09,11 SERVICES,CHIEF FINANCIAL OFFICER,CAPITAL CONTRACTS (SW) LTD,440765,1029.4,874200733
BEIS,Met Office,2020-04-09,13 MISCELLANEOUS,CHIEF FINANCIAL OFFICER,CARDIFF EXECUTIVE CENTRE LTD,440769,3.48,864497378
BEIS,Met Office,2020-04-02,PLANT AND EQUIPMENT,CHIEF FINANCIAL OFFICER,CBRE MANAGED SERVICES LTD,440409,4790.22,853936883
BEIS,Met Office,2020-04-02,06 ACCOMMODATION,CHIEF FINANCIAL OFFICER,CBRE MANAGED SERVICES LTD,440410,18908.28,853936883
BEIS,Met Office,2020-04-30,06 ACCOMMODATION,CHIEF FINANCIAL OFFICER,CBRE MANAGED SERVICES LTD,441668,27993.75,853936883
BEIS,Met Office,2020-04-02,06 ACCOMMODATION,CHIEF FINANCIAL OFFICER,CBRE MANAGED SERVICES LTD,440422,50761.95,853936883
BEIS,Met Office,2020-04-02,06 ACCOMMODATION,CHIEF FINANCIAL OFFICER,CBRE MANAGED SERVICES LTD,440408,139091.14,853936883
BEIS,Met Office,2020-04-30,06 ACCOMMODATION,CHIEF FINANCIAL OFFICER,CBRE MANAGED SERVICES LTD,441667,141871.1,853936883
BEIS,Met Office,2020-04-02,08 SOFTWARE LICENCES,CHIEF FINANCIAL OFFICER,CEMAR,440394,180,915042161
BEIS,Met Office,2020-04-23,08 SOFTWARE LICENCES,CHIEF FINANCIAL OFFICER,CEMAR,441545,180,915042161
BEIS,Met Office,2020-04-23,08 SOFTWARE LICENCES,CHIEF FINANCIAL OFFICER,CEMAR,441595,450,915042161
BEIS,Met Office,2020-04-02,06 ACCOMMODATION,CHIEF FINANCIAL OFFICER,CLEANING MATTERS BEDFORD LTD,440699,594,847592286
BEIS,Met Office,2020-04-16,05 CONSULTANTS,CHIEF FINANCIAL OFFICER,CONSTRUCTING EXCELLENCE SOUTH WEST,441284,230,192910203
BEIS,Met Office,2020-04-16,06 ACCOMMODATION,CHIEF FINANCIAL OFFICER,CORONA ENERGY LTD,441249,727.81,577704800
BEIS,Met Office,2020-04-23,06 ACCOMMODATION,CHIEF FINANCIAL OFFICER,CORONA ENERGY LTD,441416,742.2,577704800
BEIS,Met Office,2020-04-23,06 ACCOMMODATION,CHIEF FINANCIAL OFFICER,CORONA ENERGY LTD,441435,753.92,577704800
BEIS,Met Office,2020-04-16,06 ACCOMMODATION,CHIEF FINANCIAL OFFICER,CORONA ENERGY LTD,441250,16479.38,577704800
BEIS,Met Office,2020-04-23,06 ACCOMMODATION,CHIEF FINANCIAL OFFICER,CORONA ENERGY LTD,441408,19328.19,577704800
BEIS,Met Office,2020-04-23,06 ACCOMMODATION,CHIEF FINANCIAL OFFICER,CORONA ENERGY LTD,441453,20249.05,577704800
BEIS,Met Office,2020-04-09,11 SERVICES,CHIEF FINANCIAL OFFICER,CORPS SECURITY,440786,109.23,863536505
BEIS,Met Office,2020-04-09,11 SERVICES,CHIEF FINANCIAL OFFICER,CORPS SECURITY,440785,1491,863536505
BEIS,Met Office,2020-04-09,11 SERVICES,CHIEF FINANCIAL OFFICER,CORPS SECURITY,440783,9615.94,863536505
BEIS,Met Office,2020-04-09,11 SERVICES,CHIEF FINANCIAL OFFICER,CORPS SECURITY,440784,19172.2,863536505
BEIS,Met Office,2020-04-09,06 ACCOMMODATION,CHIEF FINANCIAL OFFICER,COUNTRYWIDE GROUNDS MAINTENANCE LTD,440596,60,611731279
BEIS,Met Office,2020-04-09,06 ACCOMMODATION,CHIEF FINANCIAL OFFICER,COUNTRYWIDE GROUNDS MAINTENANCE LTD,440596,98,611731279
BEIS,Met Office,2020-04-09,06 ACCOMMODATION,CHIEF FINANCIAL OFFICER,COUNTRYWIDE GROUNDS MAINTENANCE LTD,440596,155,611731279
BEIS,Met Office,2020-04-09,06 ACCOMMODATION,CHIEF FINANCIAL OFFICER,COUNTRYWIDE GROUNDS MAINTENANCE LTD,440596,157.57,611731279
BEIS,Met Office,2020-04-09,06 ACCOMMODATION,CHIEF FINANCIAL OFFICER,COUNTRYWIDE GROUNDS MAINTENANCE LTD,440353,320,611731279
BEIS,Met Office,2020-04-09,06 ACCOMMODATION,CHIEF FINANCIAL OFFICER,COUNTRYWIDE GROUNDS MAINTENANCE LTD,440597,625,611731279
BEIS,Met Office,2020-04-09,06 ACCOMMODATION,CHIEF FINANCIAL OFFICER,D&G OFFICE SERVICES LTD,441021,225,272997547
BEIS,Met Office,2020-04-09,06 ACCOMMODATION,CHIEF FINANCIAL OFFICER,DALCOUR MACLAREN LTD,440939,1500,823 6484 20
BEIS,Met Office,2020-04-01,13 MISCELLANEOUS,CHIEF FINANCIAL OFFICER,DEMSTAR BUSINESS SOLUTIONS LTD,21266,152.87,10156145J
BEIS,Met Office,2020-04-02,11 SERVICES,CHIEF FINANCIAL OFFICER,DIGITAL COMMUNICATIONS SYSTEMS LIMITED,440463,5872.26,GB 556 1971 19
BEIS,Met Office,2020-04-09,13 MISCELLANEOUS,CHIEF FINANCIAL OFFICER,EAST ANGLIAN WATER COOLER CO,440793,30.8,676668178
BEIS,Met Office,2020-04-09,06 ACCOMMODATION,CHIEF FINANCIAL OFFICER,Eden District Council,441038,598.8,257205566
BEIS,Met Office,2020-04-30,13 MISCELLANEOUS,CHIEF FINANCIAL OFFICER,EDEN SPRINGS UK LTD,441783,0,232160411
BEIS,Met Office,2020-04-30,13 MISCELLANEOUS,CHIEF FINANCIAL OFFICER,EDEN SPRINGS UK LTD,441783,357.43,232160411
BEIS,Met Office,2020-04-02,13 MISCELLANEOUS,CHIEF FINANCIAL OFFICER,EDEN SPRINGS UK LTD,440469,372.06,232160411
BEIS,Met Office,2020-04-23,06 ACCOMMODATION,CHIEF FINANCIAL OFFICER,EDF ENERGY CUSTOMERS PLC,441366,-404584.9,523041202
BEIS,Met Office,2020-04-23,06 ACCOMMODATION,CHIEF FINANCIAL OFFICER,EDF ENERGY CUSTOMERS PLC,441599,-135373.53,523041202
BEIS,Met Office,2020-04-23,06 ACCOMMODATION,CHIEF FINANCIAL OFFICER,EDF ENERGY CUSTOMERS PLC,441363,-119490.68,523041202
BEIS,Met Office,2020-04-23,06 ACCOMMODATION,CHIEF FINANCIAL OFFICER,EDF ENERGY CUSTOMERS PLC,441365,-111642.87,523041202
BEIS,Met Office,2020-04-23,06 ACCOMMODATION,CHIEF FINANCIAL OFFICER,EDF ENERGY CUSTOMERS PLC,441364,-106626.67,523041202
BEIS,Met Office,2020-04-30,06 ACCOMMODATION,CHIEF FINANCIAL OFFICER,EDF ENERGY CUSTOMERS PLC,441613,653.13,523041202
BEIS,Met Office,2020-04-23,06 ACCOMMODATION,CHIEF FINANCIAL OFFICER,EDF ENERGY CUSTOMERS PLC,441246,106974.76,523041202
BEIS,Met Office,2020-04-23,06 ACCOMMODATION,CHIEF FINANCIAL OFFICER,EDF ENERGY CUSTOMERS PLC,441244,111642.87,523041202
BEIS,Met Office,2020-04-23,06 ACCOMMODATION,CHIEF FINANCIAL OFFICER,EDF ENERGY CUSTOMERS PLC,441493,111642.87,523041202
BEIS,Met Office,2020-04-23,06 ACCOMMODATION,CHIEF FINANCIAL OFFICER,EDF ENERGY CUSTOMERS PLC,441292,119876.89,523041202
BEIS,Met Office,2020-04-23,06 ACCOMMODATION,CHIEF FINANCIAL OFFICER,EDF ENERGY CUSTOMERS PLC,441248,135373.53,523041202
BEIS,Met Office,2020-04-23,06 ACCOMMODATION,CHIEF FINANCIAL OFFICER,EDF ENERGY CUSTOMERS PLC,441495,135373.53,523041202
BEIS,Met Office,2020-04-23,06 ACCOMMODATION,CHIEF FINANCIAL OFFICER,EDF ENERGY CUSTOMERS PLC,441367,404584.9,523041202
BEIS,Met Office,2020-04-23,06 ACCOMMODATION,CHIEF FINANCIAL OFFICER,EDF ENERGY CUSTOMERS PLC,441494,404584.9,523041202
BEIS,Met Office,2020-04-22,11 SERVICES,CHIEF FINANCIAL OFFICER,EIR,21293,56.02,4736919B
BEIS,Met Office,2020-04-23,03 STAFF COSTS T&S,CHIEF FINANCIAL OFFICER,ENTERPRISE RENT A CAR UK LTD,441340,41.13,215557314
BEIS,Met Office,2020-04-02,03 STAFF COSTS T&S,CHIEF FINANCIAL OFFICER,ENTERPRISE RENT A CAR UK LTD,440688,96.53,215557314
BEIS,Met Office,2020-04-09,03 STAFF COSTS T&S,CHIEF FINANCIAL OFFICER,ENTERPRISE RENT A CAR UK LTD,440727,96.53,215557314
BEIS,Met Office,2020-04-30,03 STAFF COSTS T&S,CHIEF FINANCIAL OFFICER,ENTERPRISE RENT A CAR UK LTD,441801,117.06,215557314
BEIS,Met Office,2020-04-09,03 STAFF COSTS T&S,CHIEF FINANCIAL OFFICER,ENTERPRISE RENT A CAR UK LTD,441005,131.2,215557314
BEIS,Met Office,2020-04-30,03 STAFF COSTS T&S,CHIEF FINANCIAL OFFICER,ENTERPRISE RENT A CAR UK LTD,441800,235,215557314
BEIS,Met Office,2020-04-09,03 STAFF COSTS T&S,CHIEF FINANCIAL OFFICER,ENTERPRISE RENT A CAR UK LTD,440725,544.6,215557314
BEIS,Met Office,2020-04-09,03 STAFF COSTS T&S,CHIEF FINANCIAL OFFICER,ENTERPRISE RENT A CAR UK LTD,440726,1014.61,215557314
BEIS,Met Office,2020-04-02,03 STAFF COSTS T&S,CHIEF FINANCIAL OFFICER,ENTERPRISE RENT A CAR UK LTD,440465,2333.29,215557314
BEIS,Met Office,2020-04-30,06 ACCOMMODATION,CHIEF FINANCIAL OFFICER,Exeter City Council,440190,140288,142335594
BEIS,Met Office,2020-04-16,11 SERVICES,CHIEF FINANCIAL OFFICER,EXPONENTIAL-E,441259,2683.26,GB798572653
BEIS,Met Office,2020-04-23,FIXTURE & FITTINGS,CHIEF FINANCIAL OFFICER,FMS INTERIOR SERVICES LTD,441330,9.17,922056940
BEIS,Met Office,2020-04-23,FIXTURE & FITTINGS,CHIEF FINANCIAL OFFICER,FMS INTERIOR SERVICES LTD,441330,141.64,922056940
BEIS,Met Office,2020-04-23,FIXTURE & FITTINGS,CHIEF FINANCIAL OFFICER,FMS INTERIOR SERVICES LTD,441330,164,922056940
BEIS,Met Office,2020-04-09,06 ACCOMMODATION,CHIEF FINANCIAL OFFICER,FOX GROUNDS MAINTENANCE & LANDSCAPING LTD,440598,305.66,129495383
BEIS,Met Office,2020-04-23,06 ACCOMMODATION,CHIEF FINANCIAL OFFICER,FUTURE CLEANING SERVICES (SW) LTD.,441552,862.33,756916489
BEIS,Met Office,2020-04-16,11 SERVICES,CHIEF FINANCIAL OFFICER,GAMMA BUSINESS COMMUNICATIONS LTD,441251,497.5,823820344
BEIS,Met Office,2020-04-23,11 SERVICES,CHIEF FINANCIAL OFFICER,GAMMA TELECOM LTD,441352,0.1,823820344
BEIS,Met Office,2020-04-23,11 SERVICES,CHIEF FINANCIAL OFFICER,GAMMA TELECOM LTD,441352,59268.47,823820344
BEIS,Met Office,2020-04-09,06 ACCOMMODATION,CHIEF FINANCIAL OFFICER,GBC LTD,440683,92.4,859903672
BEIS,Met Office,2020-04-09,06 ACCOMMODATION,CHIEF FINANCIAL OFFICER,GBC LTD,440683,96.72,859903672
BEIS,Met Office,2020-04-09,11 SERVICES,CHIEF FINANCIAL OFFICER,GIBRALTAR NYNEX COMMUNICATIONS LTD,441006,694.06,NOVAT
BEIS,Met Office,2020-04-02,06 ACCOMMODATION,CHIEF FINANCIAL OFFICER,GREENSTAR CLEANERS LTD,440292,202.5,492376222
BEIS,Met Office,2020-04-09,06 ACCOMMODATION,CHIEF FINANCIAL OFFICER,GRS BUILDING SERVICES SOUTH-WEST,440866,487,-
BEIS,Met Office,2020-04-09,06 ACCOMMODATION,CHIEF FINANCIAL OFFICER,H&V COMMISSIONING SERVICES LTD,440942,1043,265059549
BEIS,Met Office,2020-04-16,11 SERVICES,CHIEF FINANCIAL OFFICER,HARPER MACLEOD LLP,441236,148.8,762130557
BEIS,Met Office,2020-04-16,04 CONTRACTORS,CHIEF FINANCIAL OFFICER,HAYS SPECIALIST RECRUITMENT LTD,441002,526.6,773695871
BEIS,Met Office,2020-04-23,04 CONTRACTORS,CHIEF FINANCIAL OFFICER,HAYS SPECIALIST RECRUITMENT LTD,441407,526.6,773695871
BEIS,Met Office,2020-04-30,04 CONTRACTORS,CHIEF FINANCIAL OFFICER,HAYS SPECIALIST RECRUITMENT LTD,441659,526.6,773695871
BEIS,Met Office,2020-04-16,04 CONTRACTORS,CHIEF FINANCIAL OFFICER,HAYS SPECIALIST RECRUITMENT LTD,441096,658.25,773695871
BEIS,Met Office,2020-04-09,04 CONTRACTORS,CHIEF FINANCIAL OFFICER,HAYS SPECIALIST RECRUITMENT LTD,441004,676.04,773695871
BEIS,Met Office,2020-04-30,06 ACCOMMODATION,CHIEF FINANCIAL OFFICER,I J CANNINGS & SON LTD,441762,493.22,192803203
BEIS,Met Office,2020-04-23,06 ACCOMMODATION,CHIEF FINANCIAL OFFICER,I J CANNINGS & SON LTD,441348,875.3,192803203
BEIS,Met Office,2020-04-30,06 ACCOMMODATION,CHIEF FINANCIAL OFFICER,I J CANNINGS & SON LTD,441762,875.3,192803203
BEIS,Met Office,2020-04-30,06 ACCOMMODATION,CHIEF FINANCIAL OFFICER,I J CANNINGS & SON LTD,441638,924.81,192803203
BEIS,Met Office,2020-04-23,06 ACCOMMODATION,CHIEF FINANCIAL OFFICER,I J CANNINGS & SON LTD,441348,1044.6,192803203
BEIS,Met Office,2020-04-30,06 ACCOMMODATION,CHIEF FINANCIAL OFFICER,I J CANNINGS & SON LTD,441797,1107.26,192803203
BEIS,Met Office,2020-04-30,06 ACCOMMODATION,CHIEF FINANCIAL OFFICER,I J CANNINGS & SON LTD,441638,1289.47,192803203
BEIS,Met Office,2020-04-09,06 ACCOMMODATION,CHIEF FINANCIAL OFFICER,I J CANNINGS & SON LTD,440767,1405.8,192803203
BEIS,Met Office,2020-04-30,06 ACCOMMODATION,CHIEF FINANCIAL OFFICER,I J CANNINGS & SON LTD,441797,1467.63,192803203
BEIS,Met Office,2020-04-30,06 ACCOMMODATION,CHIEF FINANCIAL OFFICER,I J CANNINGS & SON LTD,441638,1618.64,192803203
BEIS,Met Office,2020-04-09,06 ACCOMMODATION,CHIEF FINANCIAL OFFICER,I J CANNINGS & SON LTD,440767,1691.8,192803203
BEIS,Met Office,2020-04-30,06 ACCOMMODATION,CHIEF FINANCIAL OFFICER,I J CANNINGS & SON LTD,441638,1703,192803203
BEIS,Met Office,2020-04-09,06 ACCOMMODATION,CHIEF FINANCIAL OFFICER,I J CANNINGS & SON LTD,440746,1786.11,192803203
BEIS,Met Office,2020-04-09,06 ACCOMMODATION,CHIEF FINANCIAL OFFICER,I J CANNINGS & SON LTD,440743,1800,192803203
BEIS,Met Office,2020-04-23,06 ACCOMMODATION,CHIEF FINANCIAL OFFICER,I J CANNINGS & SON LTD,441291,2881.22,192803203
BEIS,Met Office,2020-04-16,06 ACCOMMODATION,CHIEF FINANCIAL OFFICER,I J CANNINGS & SON LTD,441288,3757.5,192803203
BEIS,Met Office,2020-04-16,FIXTURE & FITTINGS,CHIEF FINANCIAL OFFICER,I J CANNINGS & SON LTD,441273,6997,192803203
BEIS,Met Office,2020-04-23,11 SERVICES,CHIEF FINANCIAL OFFICER,INTEROUTE COMMUNICATIONS LIMITED,441400,4931.94,832 7071 39
BEIS,Met Office,2020-04-09,11 SERVICES,CHIEF FINANCIAL OFFICER,JERSEY TELECOM,441037,1282.59,NOTVATREG
BEIS,Met Office,2020-04-02,FIXTURE & FITTINGS,CHIEF FINANCIAL OFFICER,LARS COMMUNICATIONS LTD,440414,1540,531463858
BEIS,Met Office,2020-04-02,FIXTURE & FITTINGS,CHIEF FINANCIAL OFFICER,LARS COMMUNICATIONS LTD,440415,33528.8,531463858
BEIS,Met Office,2020-04-23,03 STAFF COSTS T&S,CHIEF FINANCIAL OFFICER,LEASEDRIVE RENTAL MANAGEMENT LTD,441551,905.42,733546040
BEIS,Met Office,2020-04-16,11 SERVICES,CHIEF FINANCIAL OFFICER,LICENCE BUREAU LTD,441077,130.6,820219467
BEIS,Met Office,2020-04-09,11 SERVICES,CHIEF FINANCIAL OFFICER,MANX TELECOM LTD,441015,53.21,003291912
BEIS,Met Office,2020-04-23,11 SERVICES,CHIEF FINANCIAL OFFICER,MAWASEM LTD,441397,143521.15,197694731
BEIS,Met Office,2020-04-02,06 ACCOMMODATION,CHIEF FINANCIAL OFFICER,MORAY COUNCIL,440417,20.79,663755506
BEIS,Met Office,2020-04-23,06 ACCOMMODATION,CHIEF FINANCIAL OFFICER,MORAY COUNCIL,441405,2925,663755506
BEIS,Met Office,2020-04-02,11 SERVICES,CHIEF FINANCIAL OFFICER,Morton Fraser LLP,440593,156,269129336
BEIS,Met Office,2020-04-23,06 ACCOMMODATION,CHIEF FINANCIAL OFFICER,MOUNT CHARLES GROUP LTD,441565,313.37,517116274
BEIS,Met Office,2020-04-02,11 SERVICES,CHIEF FINANCIAL OFFICER,National Oceanography Centre,440675,735.9,GB 338 5487 64
BEIS,Met Office,2020-04-02,06 ACCOMMODATION,CHIEF FINANCIAL OFFICER,National Oceanography Centre,440675,51875.7,GB 338 5487 64
BEIS,Met Office,2020-04-23,07 EQUIPMENT,CHIEF FINANCIAL OFFICER,NATWEST COMMERCIAL CARDS DIVISION,441543,3272.37,N/A
BEIS,Met Office,2020-04-16,06 ACCOMMODATION,CHIEF FINANCIAL OFFICER,NESS ENGINEERING LTD,441133,83.14,430188472
BEIS,Met Office,2020-04-23,06 ACCOMMODATION,CHIEF FINANCIAL OFFICER,NESS ENGINEERING LTD,441556,5375.4,430188472
BEIS,Met Office,2020-04-16,06 ACCOMMODATION,CHIEF FINANCIAL OFFICER,NORSCOTT VENDING SERVICES LTD,441034,85,751402071
BEIS,Met Office,2020-04-16,06 ACCOMMODATION,CHIEF FINANCIAL OFFICER,OCS Group UK Limited,441027,178048.18,GB238034379
BEIS,Met Office,2020-04-30,06 ACCOMMODATION,CHIEF FINANCIAL OFFICER,Ocs Group Uk Ltd,441374,48.1,238034379
BEIS,Met Office,2020-04-09,04 CONTRACTORS,CHIEF FINANCIAL OFFICER,OUTSOURCE UK LIMITED,440643,5161.35,576118722
BEIS,Met Office,2020-04-02,04 CONTRACTORS,CHIEF FINANCIAL OFFICER,OUTSOURCE UK LIMITED,440632,6256.92,576118722
BEIS,Met Office,2020-04-02,04 CONTRACTORS,CHIEF FINANCIAL OFFICER,OUTSOURCE UK LIMITED,440628,8505.15,576118722
BEIS,Met Office,2020-04-02,04 CONTRACTORS,CHIEF FINANCIAL OFFICER,OUTSOURCE UK LIMITED,440602,8695.75,576118722
BEIS,Met Office,2020-04-02,04 CONTRACTORS,CHIEF FINANCIAL OFFICER,OUTSOURCE UK LIMITED,440621,8695.75,576118722
BEIS,Met Office,2020-04-09,04 CONTRACTORS,CHIEF FINANCIAL OFFICER,OUTSOURCE UK LIMITED,440614,10881.6,576118722
BEIS,Met Office,2020-04-02,04 CONTRACTORS,CHIEF FINANCIAL OFFICER,OUTSOURCE UK LIMITED,440615,13608.24,576118722
BEIS,Met Office,2020-04-30,13 MISCELLANEOUS,CHIEF FINANCIAL OFFICER,POSTURITE (UK) LTD,441791,13.99,583565114
BEIS,Met Office,2020-04-02,13 MISCELLANEOUS,CHIEF FINANCIAL OFFICER,POSTURITE (UK) LTD,439057,18.6,583565114
BEIS,Met Office,2020-04-23,13 MISCELLANEOUS,CHIEF FINANCIAL OFFICER,POSTURITE (UK) LTD,441395,27.61,583565114
BEIS,Met Office,2020-04-02,13 MISCELLANEOUS,CHIEF FINANCIAL OFFICER,POSTURITE (UK) LTD,439313,36.55,583565114
BEIS,Met Office,2020-04-23,13 MISCELLANEOUS,CHIEF FINANCIAL OFFICER,POSTURITE (UK) LTD,441380,52.67,583565114
BEIS,Met Office,2020-04-02,13 MISCELLANEOUS,CHIEF FINANCIAL OFFICER,POSTURITE (UK) LTD,439724,69.2,583565114
BEIS,Met Office,2020-04-16,13 MISCELLANEOUS,CHIEF FINANCIAL OFFICER,POSTURITE (UK) LTD,441120,82.32,583565114
BEIS,Met Office,2020-04-23,13 MISCELLANEOUS,CHIEF FINANCIAL OFFICER,POSTURITE (UK) LTD,441381,94.82,583565114
BEIS,Met Office,2020-04-23,13 MISCELLANEOUS,CHIEF FINANCIAL OFFICER,POSTURITE (UK) LTD,441382,139.49,583565114
BEIS,Met Office,2020-04-23,13 MISCELLANEOUS,CHIEF FINANCIAL OFFICER,POSTURITE (UK) LTD,441406,139.49,583565114
BEIS,Met Office,2020-04-16,06 ACCOMMODATION,CHIEF FINANCIAL OFFICER,POWER NI ENERGY LTD,441242,116.87,617518142
BEIS,Met Office,2020-04-16,06 ACCOMMODATION,CHIEF FINANCIAL OFFICER,POWER NI ENERGY LTD,441286,425.63,617518142
BEIS,Met Office,2020-04-02,04 CONTRACTORS,CHIEF FINANCIAL OFFICER,QUALSERV CONSULTING LTD,440652,8750,719067718
BEIS,Met Office,2020-04-09,03 STAFF COSTS T&S,CHIEF FINANCIAL OFFICER,RAINBOW CITY TAXIS,440744,21.5,724295039
BEIS,Met Office,2020-04-09,11 SERVICES,CHIEF FINANCIAL OFFICER,REDACTED � PERSONAL DATA,440623,13.5,729159704
BEIS,Met Office,2020-04-16,06 ACCOMMODATION,CHIEF FINANCIAL OFFICER,REDACTED � PERSONAL DATA,441023,80,166458184
BEIS,Met Office,2020-04-09,06 ACCOMMODATION,CHIEF FINANCIAL OFFICER,REDACTED � PERSONAL DATA,441025,95,899936427
BEIS,Met Office,2020-04-09,06 ACCOMMODATION,CHIEF FINANCIAL OFFICER,REDACTED � PERSONAL DATA,440988,100,N/A
BEIS,Met Office,2020-04-09,11 SERVICES,CHIEF FINANCIAL OFFICER,REDACTED � PERSONAL DATA,440623,105.7,729159704
BEIS,Met Office,2020-04-23,06 ACCOMMODATION,CHIEF FINANCIAL OFFICER,REDACTED � PERSONAL DATA,441338,121,655585009
BEIS,Met Office,2020-04-23,06 ACCOMMODATION,CHIEF FINANCIAL OFFICER,REDACTED � PERSONAL DATA,441338,200,655585009
BEIS,Met Office,2020-04-23,06 ACCOMMODATION,CHIEF FINANCIAL OFFICER,REDACTED � PERSONAL DATA,441338,200,655585009
BEIS,Met Office,2020-04-23,06 ACCOMMODATION,CHIEF FINANCIAL OFFICER,REDACTED � PERSONAL DATA,441338,200,655585009
BEIS,Met Office,2020-04-09,06 ACCOMMODATION,CHIEF FINANCIAL OFFICER,REDACTED � PERSONAL DATA,440276,463.5,426523462
BEIS,Met Office,2020-04-29,06 ACCOMMODATION,CHIEF FINANCIAL OFFICER,REDACTED � PERSONAL DATA,441279,520,-
BEIS,Met Office,2020-04-16,06 ACCOMMODATION,CHIEF FINANCIAL OFFICER,REDACTED � PERSONAL DATA,441026,710,899936427
BEIS,Met Office,2020-04-09,06 ACCOMMODATION,CHIEF FINANCIAL OFFICER,REDACTED � PERSONAL DATA,440269,730,426523462
BEIS,Met Office,2020-04-09,06 ACCOMMODATION,CHIEF FINANCIAL OFFICER,REDACTED � PERSONAL DATA,440585,751,426523462
BEIS,Met Office,2020-04-16,06 ACCOMMODATION,CHIEF FINANCIAL OFFICER,REDACTED � PERSONAL DATA,441113,751,426523462
BEIS,Met Office,2020-04-30,06 ACCOMMODATION,CHIEF FINANCIAL OFFICER,REDACTED � PERSONAL DATA,441655,751,426523462
BEIS,Met Office,2020-04-23,06 ACCOMMODATION,CHIEF FINANCIAL OFFICER,REDACTED � PERSONAL DATA,441344,791,NOT VAT REG'D
BEIS,Met Office,2020-04-02,06 ACCOMMODATION,CHIEF FINANCIAL OFFICER,REDACTED � PERSONAL DATA,440419,1150,426523462
BEIS,Met Office,2020-04-09,11 SERVICES,CHIEF FINANCIAL OFFICER,Reuters Ltd,440814,1785,397000555
BEIS,Met Office,2020-04-09,13 MISCELLANEOUS,CHIEF FINANCIAL OFFICER,RICOH UK LTD,440854,399,524161280
BEIS,Met Office,2020-04-16,06 ACCOMMODATION,CHIEF FINANCIAL OFFICER,RIVER RIDGE,441115,109.09,176286083
BEIS,Met Office,2020-04-30,06 ACCOMMODATION,CHIEF FINANCIAL OFFICER,ROLLO POWER SOLUTIONS,441774,377,100516042
BEIS,Met Office,2020-04-30,06 ACCOMMODATION,CHIEF FINANCIAL OFFICER,ROLLO POWER SOLUTIONS,441775,377,100516042
BEIS,Met Office,2020-04-16,06 ACCOMMODATION,CHIEF FINANCIAL OFFICER,SAC COMMERCIAL LTD,441289,541,435882817
BEIS,Met Office,2020-04-16,06 ACCOMMODATION,CHIEF FINANCIAL OFFICER,SAFESTORE LTD,441281,2681.21,722887607
BEIS,Met Office,2020-04-09,06 ACCOMMODATION,CHIEF FINANCIAL OFFICER,Scottish Government,440687,414.83,888842551
BEIS,Met Office,2020-04-02,13 MISCELLANEOUS,CHIEF FINANCIAL OFFICER,SELECTA UK LTD,440413,144.06,581705924
BEIS,Met Office,2020-04-02,13 MISCELLANEOUS,CHIEF FINANCIAL OFFICER,SELECTA UK LTD,440698,188.15,581705924
BEIS,Met Office,2020-04-23,06 ACCOMMODATION,CHIEF FINANCIAL OFFICER,SELECTA UK LTD,441486,254.74,581705924
BEIS,Met Office,2020-04-23,06 ACCOMMODATION,CHIEF FINANCIAL OFFICER,SHETLAND CLEANING SERVICES,441287,696.67,430028404
BEIS,Met Office,2020-04-30,06 ACCOMMODATION,CHIEF FINANCIAL OFFICER,Shetland Islands Council,441793,98.01,267858304
BEIS,Met Office,2020-04-30,06 ACCOMMODATION,CHIEF FINANCIAL OFFICER,Shetland Islands Council,441666,125,267858304
BEIS,Met Office,2020-04-30,06 ACCOMMODATION,CHIEF FINANCIAL OFFICER,Shetland Islands Council,441794,490.03,267858304
BEIS,Met Office,2020-04-23,06 ACCOMMODATION,CHIEF FINANCIAL OFFICER,Shetland Islands Council,441597,34792.27,267858304
BEIS,Met Office,2020-04-09,11 SERVICES,CHIEF FINANCIAL OFFICER,Siemens Plc,441041,690.39,GB 927 317 516
BEIS,Met Office,2020-04-16,04 CONTRACTORS,CHIEF FINANCIAL OFFICER,SOLOS CONSULTANTS LTD,441094,3176.8,812035476
BEIS,Met Office,2020-04-16,04 CONTRACTORS,CHIEF FINANCIAL OFFICER,SOLOS CONSULTANTS LTD,441094,4765.2,812035476
BEIS,Met Office,2020-04-16,04 CONTRACTORS,CHIEF FINANCIAL OFFICER,SOLOS CONSULTANTS LTD,441147,14698.53,812035476
BEIS,Met Office,2020-04-16,04 CONTRACTORS,CHIEF FINANCIAL OFFICER,SOLOS CONSULTANTS LTD,441099,14945,812035476
BEIS,Met Office,2020-04-09,06 ACCOMMODATION,CHIEF FINANCIAL OFFICER,SOUTH WEST WATER LTD,441033,44.87,236873674
BEIS,Met Office,2020-04-30,06 ACCOMMODATION,CHIEF FINANCIAL OFFICER,SOUTH WEST WATER LTD,441795,730.5,236873674
BEIS,Met Office,2020-04-09,06 ACCOMMODATION,CHIEF FINANCIAL OFFICER,SOUTH WEST WATER LTD,440997,6648.52,236873674
BEIS,Met Office,2020-04-09,06 ACCOMMODATION,CHIEF FINANCIAL OFFICER,SOUTH WEST WATER LTD,440844,8275.9,236873674
BEIS,Met Office,2020-04-09,06 ACCOMMODATION,CHIEF FINANCIAL OFFICER,SSE CONTRACTING LTD,440840,62.34,570118464
BEIS,Met Office,2020-04-09,11 SERVICES,CHIEF FINANCIAL OFFICER,ST JOHN AMBULANCE,440861,875,564553916
BEIS,Met Office,2020-04-23,11 SERVICES,CHIEF FINANCIAL OFFICER,SURE SOUTH ATLANTIC LTD (ST HELENA),441547,220,30005
BEIS,Met Office,2020-04-01,11 SERVICES,CHIEF FINANCIAL OFFICER,SWISSCOM (SCHWEIZ) AG,439725,90.41,-
BEIS,Met Office,2020-04-02,11 SERVICES,CHIEF FINANCIAL OFFICER,TELEFONICA O2 UK LIMITED,440456,620,778603785
BEIS,Met Office,2020-04-16,11 SERVICES,CHIEF FINANCIAL OFFICER,TELEFONICA O2 UK LIMITED,441232,8169.45,778603785
BEIS,Met Office,2020-04-09,06 ACCOMMODATION,CHIEF FINANCIAL OFFICER,TENNIE FACILITIES PROPERTY MANAGEMENT LTD,440938,179.53,982055803
BEIS,Met Office,2020-04-02,06 ACCOMMODATION,CHIEF FINANCIAL OFFICER,TULLY FARM HOLDINGS T/A CONTRACT SERVICES,440205,75.9,872632707
BEIS,Met Office,2020-04-09,06 ACCOMMODATION,CHIEF FINANCIAL OFFICER,UNDER ONE ROOF (EAST ANGLIA) LIMITED,440594,115,157127804
BEIS,Met Office,2020-04-09,11 SERVICES,CHIEF FINANCIAL OFFICER,Vodafone Limited,440976,613.3,569953277
BEIS,Met Office,2020-04-09,11 SERVICES,CHIEF FINANCIAL OFFICER,Vodafone Limited,440975,4526.01,569953277
BEIS,Met Office,2020-04-09,11 SERVICES,CHIEF FINANCIAL OFFICER,Vodafone Ltd,440852,367.04,569953277
BEIS,Met Office,2020-04-09,11 SERVICES,CHIEF FINANCIAL OFFICER,Vodafone Ltd,440848,367.44,569953277
BEIS,Met Office,2020-04-09,11 SERVICES,CHIEF FINANCIAL OFFICER,Vodafone Ltd,440850,367.44,569953277
BEIS,Met Office,2020-04-09,04 CONTRACTORS,CHIEF FINANCIAL OFFICER,WA CONSULTANTS LTD,440755,4950,876328977
BEIS,Met Office,2020-04-02,04 CONTRACTORS,CHIEF FINANCIAL OFFICER,WA CONSULTANTS LTD,440581,6981,876328977
BEIS,Met Office,2020-04-02,04 CONTRACTORS,CHIEF FINANCIAL OFFICER,WA CONSULTANTS LTD,440584,8140,876328977
BEIS,Met Office,2020-04-02,04 CONTRACTORS,CHIEF FINANCIAL OFFICER,WA CONSULTANTS LTD,440578,8700,876328977
BEIS,Met Office,2020-04-02,04 CONTRACTORS,CHIEF FINANCIAL OFFICER,WA CONSULTANTS LTD,440582,10256.96,876328977
BEIS,Met Office,2020-04-09,04 CONTRACTORS,CHIEF FINANCIAL OFFICER,WA CONSULTANTS LTD,440777,15000,876328977
BEIS,Met Office,2020-04-23,06 ACCOMMODATION,CHIEF FINANCIAL OFFICER,WALMSLEY RESIDENTIAL LETTINGS LIMITED,441490,27371.36,200012659
BEIS,Met Office,2020-04-02,11 SERVICES,CHIEF FINANCIAL OFFICER,WEBEX COMMUNICATIONS UK LTD,440676,412.51,815974302
BEIS,Met Office,2020-04-09,06 ACCOMMODATION,CHIEF FINANCIAL OFFICER,Welsh Government,440990,750,GD 8888 350 56
BEIS,Met Office,2020-04-09,11 SERVICES,CHIEF FINANCIAL OFFICER,XPEDITE SYSTEMS (UK) LTD,441016,100,599016994
BEIS,Met Office,2020-04-09,06 ACCOMMODATION,CHIEF FINANCIAL OFFICER,XUPER,440795,1063.27,316677090
BEIS,Met Office,2020-04-09,07 EQUIPMENT,CHIEF FINANCIAL OFFICER,XUPER,440799,6217,316677090
BEIS,Met Office,2020-04-23,11 SERVICES,CORPORATE,ADJUST,441582,1025,-
BEIS,Met Office,2020-04-02,11 SERVICES,CORPORATE,BI-DESIGN EUROPE LTD T/A HOME,440678,8925,-
BEIS,Met Office,2020-04-01,11 SERVICES,CORPORATE,BRIGHTCOVE INC,439873,1682.1,TAX 20-1579162
BEIS,Met Office,2020-04-29,11 SERVICES,CORPORATE,BRIGHTCOVE INC,440796,72960,TAX 20-1579162
BEIS,Met Office,2020-04-23,11 SERVICES,CORPORATE,BUILTVISIBLE LIMITED,440397,-10350,981586376
BEIS,Met Office,2020-04-23,11 SERVICES,CORPORATE,BUILTVISIBLE LIMITED,441276,8000,981586376
BEIS,Met Office,2020-04-23,11 SERVICES,CORPORATE,BUILTVISIBLE LIMITED,440299,10350,981586376
BEIS,Met Office,2020-04-30,11 SERVICES,CORPORATE,CABINET OFFICE - COF LEAD ACCOUNT,440660,-100,-
BEIS,Met Office,2020-04-30,11 SERVICES,CORPORATE,CABINET OFFICE - COF LEAD ACCOUNT,441792,180,-
BEIS,Met Office,2020-04-09,11 SERVICES,CORPORATE,DEEPCRAWL,441008,25848,GB 988965031
BEIS,Met Office,2020-04-23,11 SERVICES,CORPORATE,DEVON PARTNERSHIP NHS TRUST,441602,170,654400557
BEIS,Met Office,2020-04-09,11 SERVICES,CORPORATE,ENVIRAL LTD,440801,2475,-
BEIS,Met Office,2020-04-23,11 SERVICES,CORPORATE,EQUINITI ICS LTD,440735,316.66,915967778
BEIS,Met Office,2020-04-16,11 SERVICES,CORPORATE,EQUINITI ICS LTD,440734,6974,915967778
BEIS,Met Office,2020-04-02,13 MISCELLANEOUS,CORPORATE,EVENBREAK,440681,8100,175722982
BEIS,Met Office,2020-04-02,11 SERVICES,CORPORATE,GOVERNMENT LEGAL DEPARTMENT,440370,140.83,888823066
BEIS,Met Office,2020-04-02,11 SERVICES,CORPORATE,HAWK INCENTIVES LTD,440352,4583.25,238839422
BEIS,Met Office,2020-04-16,11 SERVICES,CORPORATE,HAWK INCENTIVES LTD,440697,9917.25,238839422
BEIS,Met Office,2020-04-23,11 SERVICES,CORPORATE,HAWK INCENTIVES LTD,441390,11056.5,238839422
BEIS,Met Office,2020-04-02,11 SERVICES,CORPORATE,HAWK INCENTIVES LTD,440447,13938.75,238839422
BEIS,Met Office,2020-04-09,04 CONTRACTORS,CORPORATE,HAYS SPECIALIST RECRUITMENT LTD,441000,257.96,773695871
BEIS,Met Office,2020-04-02,04 CONTRACTORS,CORPORATE,HAYS SPECIALIST RECRUITMENT LTD,440405,292.93,773695871
BEIS,Met Office,2020-04-09,04 CONTRACTORS,CORPORATE,HAYS SPECIALIST RECRUITMENT LTD,440811,292.93,773695871
BEIS,Met Office,2020-04-30,04 CONTRACTORS,CORPORATE,HAYS SPECIALIST RECRUITMENT LTD,441658,524.82,773695871
BEIS,Met Office,2020-04-23,04 CONTRACTORS,CORPORATE,HAYS SPECIALIST RECRUITMENT LTD,441385,533.72,773695871
BEIS,Met Office,2020-04-02,04 CONTRACTORS,CORPORATE,HAYS SPECIALIST RECRUITMENT LTD,440406,658.25,773695871
BEIS,Met Office,2020-04-09,04 CONTRACTORS,CORPORATE,HAYS SPECIALIST RECRUITMENT LTD,440810,658.25,773695871
BEIS,Met Office,2020-04-16,04 CONTRACTORS,CORPORATE,HAYS SPECIALIST RECRUITMENT LTD,441112,658.25,773695871
BEIS,Met Office,2020-04-02,13 MISCELLANEOUS,CORPORATE,HEALTH MANAGEMENT LTD,440664,3948.65,792250621
BEIS,Met Office,2020-04-09,11 SERVICES,CORPORATE,JCA OCCUPATIONAL PSYCHOLOGISTS LIMITED,440978,10685,655518420
BEIS,Met Office,2020-04-02,11 SERVICES,CORPORATE,Landmark Information Group Ltd,440264,1690.74,634509735
BEIS,Met Office,2020-04-02,11 SERVICES,CORPORATE,Landmark Information Group Ltd,440470,46578.5,634509735
BEIS,Met Office,2020-04-30,11 SERVICES,CORPORATE,Landmark Information Group Ltd,441404,58485.31,634509735
BEIS,Met Office,2020-04-02,11 SERVICES,CORPORATE,Landmark Information Group Ltd,440277,69899.3,634509735
BEIS,Met Office,2020-04-30,11 SERVICES,CORPORATE,Landmark Information Group Ltd,441403,71773.9,634509735
BEIS,Met Office,2020-04-16,11 SERVICES,CORPORATE,MERKLE UK THREE LTD T/A MERKLE PERISCOPIX,441117,8213.33,843316243
BEIS,Met Office,2020-04-21,11 SERVICES,CORPORATE,MILLS AND SONS LTD,441540,-443.84,808366053
BEIS,Met Office,2020-04-02,04 CONTRACTORS,CORPORATE,OUTSOURCE UK LIMITED,440603,8750,576118722
BEIS,Met Office,2020-04-09,05 CONSULTANTS,CORPORATE,PRICEWATERHOUSE COOPERS LLP,440588,15000,243823957
BEIS,Met Office,2020-04-02,13 MISCELLANEOUS,CORPORATE,PUBLIC CHAIRS' FORUM,439818,1250,GB 239 6495 62
BEIS,Met Office,2020-04-02,04 CONTRACTORS,CORPORATE,QUALSERV CONSULTING LTD,440654,4500,719067718
BEIS,Met Office,2020-04-02,04 CONTRACTORS,CORPORATE,QUINTON DAVIES LIMITED,440595,5775,291532892
BEIS,Met Office,2020-04-23,04 CONTRACTORS,CORPORATE,QUINTON DAVIES LIMITED,441044,13420,291532892
BEIS,Met Office,2020-04-09,04 CONTRACTORS,CORPORATE,QUINTON DAVIES LIMITED,441039,14300,291532892
BEIS,Met Office,2020-04-02,11 SERVICES,CORPORATE,REDACTED � PERSONAL DATA,440295,225,-
BEIS,Met Office,2020-04-16,11 SERVICES,CORPORATE,REDACTED � PERSONAL DATA,441017,450,143043312
BEIS,Met Office,2020-04-02,11 SERVICES,CORPORATE,RUSSELL DIGITAL CONSULTANCY LIMITED,440700,1500,N/A
BEIS,Met Office,2020-04-09,11 SERVICES,CORPORATE,SCIENCE MEDIA CENTRE,440853,3000,-
BEIS,Met Office,2020-04-02,11 SERVICES,CORPORATE,SIGNS EXPRESS (EXETER),440395,9162,631397439
BEIS,Met Office,2020-04-23,11 SERVICES,CORPORATE,SODEXO MOT SOL UK  LTD (CHILDCARE RECEIPTS),441399,455.17,733644335
BEIS,Met Office,2020-04-16,04 CONTRACTORS,CORPORATE,SOLOS CONSULTANTS LTD,441100,5086.08,812035476
BEIS,Met Office,2020-04-16,04 CONTRACTORS,CORPORATE,SOLOS CONSULTANTS LTD,441118,9594.72,812035476
BEIS,Met Office,2020-04-16,04 CONTRACTORS,CORPORATE,SOLOS CONSULTANTS LTD,441108,12017.5,812035476
BEIS,Met Office,2020-04-16,04 CONTRACTORS,CORPORATE,SOLOS CONSULTANTS LTD,441097,12489.5,812035476
BEIS,Met Office,2020-04-23,11 SERVICES,CORPORATE,SOURCE COACHING CONSULTANCY,441024,1087.5,170422048
BEIS,Met Office,2020-04-23,11 SERVICES,CORPORATE,SWANTECH LOGISTICS LTD,441396,360,769332401
BEIS,Met Office,2020-04-09,11 SERVICES,CORPORATE,SWANTECH LOGISTICS LTD,440778,2574.96,769332401
BEIS,Met Office,2020-04-16,11 SERVICES,CORPORATE,THE RED THREAD PARTNERSHIP LTD,441080,3000,127648984
BEIS,Met Office,2020-04-16,11 SERVICES,CORPORATE,THE RED THREAD PARTNERSHIP LTD,441081,4500,127648984
BEIS,Met Office,2020-04-09,04 CONTRACTORS,CORPORATE,WA CONSULTANTS LTD,440756,7449.57,876328977
BEIS,Met Office,2020-04-30,11 SERVICES,CORPORATE,XEXEC LTD,428230,2020.5,766127320
BEIS,Met Office,2020-04-16,11 SERVICES,GOVERNMENT SERVICES,ACCELERATION EMARKETING,440999,2897.64,848940776
BEIS,Met Office,2020-04-16,11 SERVICES,GOVERNMENT SERVICES,ACCELERATION EMARKETING,441264,6114,848940776
BEIS,Met Office,2020-04-01,11 SERVICES,GOVERNMENT SERVICES,ACTION AID UGANDA,440467,376,-
BEIS,Met Office,2020-04-01,11 SERVICES,GOVERNMENT SERVICES,ACTION AID UGANDA,440466,1163,-
BEIS,Met Office,2020-04-01,11 SERVICES,GOVERNMENT SERVICES,ACTION AID UGANDA,440464,4446,-
BEIS,Met Office,2020-04-09,11 SERVICES,GOVERNMENT SERVICES,ADOPSTAR,440829,1250,115036848
BEIS,Met Office,2020-04-30,11 SERVICES,GOVERNMENT SERVICES,ARTHUR J. GALLAGHER INSURANCE BROKERS LIMITED,441798,5000,GB484746209
BEIS,Met Office,2020-04-30,11 SERVICES,GOVERNMENT SERVICES,Arup,441611,897.75,524461265
BEIS,Met Office,2020-04-09,11 SERVICES,GOVERNMENT SERVICES,Arup,439129,55759,524461265
BEIS,Met Office,2020-04-15,11 SERVICES,GOVERNMENT SERVICES,"BASILIO SOZINHO CUBULA SERVI�OS, E.I.",9736,2819.06,N/A
BEIS,Met Office,2020-04-29,11 SERVICES,GOVERNMENT SERVICES,"BASILIO SOZINHO CUBULA SERVI�OS, E.I.",9786,8782.12,N/A
BEIS,Met Office,2020-04-09,11 SERVICES,GOVERNMENT SERVICES,CACI LTD,440991,448.99,380609841
BEIS,Met Office,2020-04-09,11 SERVICES,GOVERNMENT SERVICES,CACI LTD,440991,3983.75,380609841
BEIS,Met Office,2020-04-09,11 SERVICES,GOVERNMENT SERVICES,CACI LTD,440991,10745.69,380609841
BEIS,Met Office,2020-04-09,11 SERVICES,GOVERNMENT SERVICES,CACI LTD,440991,24596.5,380609841
BEIS,Met Office,2020-04-23,11 SERVICES,GOVERNMENT SERVICES,CAMBRIDGE ECONOMETRICS LTD,441589,18030,1916825
BEIS,Met Office,2020-04-02,11 SERVICES,GOVERNMENT SERVICES,CAMBRIDGE ECONOMETRICS LTD,440663,55000,1916825
BEIS,Met Office,2020-04-23,11 SERVICES,GOVERNMENT SERVICES,CAMBRIDGE ENVIRONMENTAL RESEARCH CONSULTANTS,441563,48504,GB424750755
BEIS,Met Office,2020-04-02,11 SERVICES,GOVERNMENT SERVICES,Cgi It Uk Limited,440367,187696.3,232615194
BEIS,Met Office,2020-04-16,13 MISCELLANEOUS,GOVERNMENT SERVICES,COPYRIGHT LICENSING AGENCY LTD,441247,9702.6,386463025
BEIS,Met Office,2020-04-02,11 SERVICES,GOVERNMENT SERVICES,DESIGNAMITE LTD,440262,1295,817819989
BEIS,Met Office,2020-04-23,11 SERVICES,GOVERNMENT SERVICES,Devon County Council,441391,115,142208113
BEIS,Met Office,2020-04-01,11 SERVICES,GOVERNMENT SERVICES,DISASTER RISK MANAGEMENT NPC,439197,521.56,4140185143
BEIS,Met Office,2020-04-29,11 SERVICES,GOVERNMENT SERVICES,ECMWF,21358,-19965.91,NOTVATREG
BEIS,Met Office,2020-04-29,11 SERVICES,GOVERNMENT SERVICES,ECMWF,21353,-2859.69,NOTVATREG
BEIS,Met Office,2020-04-29,11 SERVICES,GOVERNMENT SERVICES,ECMWF,21356,-521.63,NOTVATREG
BEIS,Met Office,2020-04-29,11 SERVICES,GOVERNMENT SERVICES,ECMWF,21336,144.64,NOTVATREG
BEIS,Met Office,2020-04-29,11 SERVICES,GOVERNMENT SERVICES,ECMWF,21348,275.27,NOTVATREG
BEIS,Met Office,2020-04-29,11 SERVICES,GOVERNMENT SERVICES,ECMWF,21322,454.17,NOTVATREG
BEIS,Met Office,2020-04-29,11 SERVICES,GOVERNMENT SERVICES,ECMWF,21306,978.98,NOTVATREG
BEIS,Met Office,2020-04-29,11 SERVICES,GOVERNMENT SERVICES,ECMWF,21312,1070.51,NOTVATREG
BEIS,Met Office,2020-04-29,11 SERVICES,GOVERNMENT SERVICES,ECMWF,21319,1122.59,NOTVATREG
BEIS,Met Office,2020-04-29,11 SERVICES,GOVERNMENT SERVICES,ECMWF,21343,1280.27,NOTVATREG
BEIS,Met Office,2020-04-29,11 SERVICES,GOVERNMENT SERVICES,ECMWF,21344,1341.89,NOTVATREG
BEIS,Met Office,2020-04-29,11 SERVICES,GOVERNMENT SERVICES,ECMWF,21324,1343.76,NOTVATREG
BEIS,Met Office,2020-04-29,11 SERVICES,GOVERNMENT SERVICES,ECMWF,21335,1423.21,NOTVATREG
BEIS,Met Office,2020-04-29,11 SERVICES,GOVERNMENT SERVICES,ECMWF,21347,1783.21,NOTVATREG
BEIS,Met Office,2020-04-29,11 SERVICES,GOVERNMENT SERVICES,ECMWF,21360,1789.18,NOTVATREG
BEIS,Met Office,2020-04-29,11 SERVICES,GOVERNMENT SERVICES,ECMWF,21318,1990.03,NOTVATREG
BEIS,Met Office,2020-04-29,11 SERVICES,GOVERNMENT SERVICES,ECMWF,21340,2242.21,NOTVATREG
BEIS,Met Office,2020-04-29,11 SERVICES,GOVERNMENT SERVICES,ECMWF,21333,2683.77,NOTVATREG
BEIS,Met Office,2020-04-29,11 SERVICES,GOVERNMENT SERVICES,ECMWF,21304,2683.82,NOTVATREG
BEIS,Met Office,2020-04-29,11 SERVICES,GOVERNMENT SERVICES,ECMWF,21077,2687.28,NOTVATREG
BEIS,Met Office,2020-04-29,11 SERVICES,GOVERNMENT SERVICES,ECMWF,21311,2739.68,NOTVATREG
BEIS,Met Office,2020-04-29,11 SERVICES,GOVERNMENT SERVICES,ECMWF,21332,2739.68,NOTVATREG
BEIS,Met Office,2020-04-29,11 SERVICES,GOVERNMENT SERVICES,ECMWF,21337,3038.21,NOTVATREG
BEIS,Met Office,2020-04-29,11 SERVICES,GOVERNMENT SERVICES,ECMWF,21357,3131.07,NOTVATREG
BEIS,Met Office,2020-04-29,11 SERVICES,GOVERNMENT SERVICES,ECMWF,21341,3564.49,NOTVATREG
BEIS,Met Office,2020-04-29,11 SERVICES,GOVERNMENT SERVICES,ECMWF,21316,3578.36,NOTVATREG
BEIS,Met Office,2020-04-29,11 SERVICES,GOVERNMENT SERVICES,ECMWF,21339,3870.3,NOTVATREG
BEIS,Met Office,2020-04-29,11 SERVICES,GOVERNMENT SERVICES,ECMWF,21314,4159.23,NOTVATREG
BEIS,Met Office,2020-04-29,11 SERVICES,GOVERNMENT SERVICES,ECMWF,21323,5158.98,NOTVATREG
BEIS,Met Office,2020-04-29,11 SERVICES,GOVERNMENT SERVICES,ECMWF,21351,6032.68,NOTVATREG
BEIS,Met Office,2020-04-29,11 SERVICES,GOVERNMENT SERVICES,ECMWF,21327,6179.21,NOTVATREG
BEIS,Met Office,2020-04-29,11 SERVICES,GOVERNMENT SERVICES,ECMWF,21359,8330.55,NOTVATREG
BEIS,Met Office,2020-04-29,11 SERVICES,GOVERNMENT SERVICES,ECMWF,21326,10245.55,NOTVATREG
BEIS,Met Office,2020-04-29,11 SERVICES,GOVERNMENT SERVICES,ECMWF,21305,10687.98,NOTVATREG
BEIS,Met Office,2020-04-29,11 SERVICES,GOVERNMENT SERVICES,ECMWF,21325,10831.01,NOTVATREG
BEIS,Met Office,2020-04-29,11 SERVICES,GOVERNMENT SERVICES,ECMWF,21367,10831.01,NOTVATREG
BEIS,Met Office,2020-04-08,11 SERVICES,GOVERNMENT SERVICES,ECMWF,21300,11586.03,NOTVATREG
BEIS,Met Office,2020-04-29,11 SERVICES,GOVERNMENT SERVICES,ECMWF,21328,11960.74,NOTVATREG
BEIS,Met Office,2020-04-29,11 SERVICES,GOVERNMENT SERVICES,ECMWF,21345,12862.04,NOTVATREG
BEIS,Met Office,2020-04-29,11 SERVICES,GOVERNMENT SERVICES,ECMWF,21076,18762.13,NOTVATREG
BEIS,Met Office,2020-04-29,11 SERVICES,GOVERNMENT SERVICES,ECMWF,21355,19416.29,NOTVATREG
BEIS,Met Office,2020-04-29,11 SERVICES,GOVERNMENT SERVICES,ECMWF,21309,19499.58,NOTVATREG
BEIS,Met Office,2020-04-29,11 SERVICES,GOVERNMENT SERVICES,ECMWF,21338,20613.84,NOTVATREG
BEIS,Met Office,2020-04-29,11 SERVICES,GOVERNMENT SERVICES,ECMWF,21310,29745.13,NOTVATREG
BEIS,Met Office,2020-04-29,11 SERVICES,GOVERNMENT SERVICES,ECMWF,21321,29745.13,NOTVATREG
BEIS,Met Office,2020-04-29,11 SERVICES,GOVERNMENT SERVICES,ECMWF,21365,29745.13,NOTVATREG
BEIS,Met Office,2020-04-29,11 SERVICES,GOVERNMENT SERVICES,ECMWF,21352,31310.66,NOTVATREG
BEIS,Met Office,2020-04-29,11 SERVICES,GOVERNMENT SERVICES,ECMWF,21307,31444.85,NOTVATREG
BEIS,Met Office,2020-04-29,11 SERVICES,GOVERNMENT SERVICES,ECMWF,21313,31444.85,NOTVATREG
BEIS,Met Office,2020-04-29,11 SERVICES,GOVERNMENT SERVICES,ECMWF,21317,31444.85,NOTVATREG
BEIS,Met Office,2020-04-29,11 SERVICES,GOVERNMENT SERVICES,ECMWF,21320,31444.85,NOTVATREG
BEIS,Met Office,2020-04-29,11 SERVICES,GOVERNMENT SERVICES,ECMWF,21329,31444.85,NOTVATREG
BEIS,Met Office,2020-04-29,11 SERVICES,GOVERNMENT SERVICES,ECMWF,21342,31444.85,NOTVATREG
BEIS,Met Office,2020-04-29,11 SERVICES,GOVERNMENT SERVICES,ECMWF,21354,31444.85,NOTVATREG
BEIS,Met Office,2020-04-29,11 SERVICES,GOVERNMENT SERVICES,ECMWF,21366,31444.85,NOTVATREG
BEIS,Met Office,2020-04-29,11 SERVICES,GOVERNMENT SERVICES,ECMWF,21334,33627.06,NOTVATREG
BEIS,Met Office,2020-04-22,11 SERVICES,GOVERNMENT SERVICES,ECOMET,21265,145094.12,EXEMPT
BEIS,Met Office,2020-04-09,11 SERVICES,GOVERNMENT SERVICES,FCO,441032,47.05,888813560
BEIS,Met Office,2020-04-02,11 SERVICES,GOVERNMENT SERVICES,FCO,440624,2948.95,888813560
BEIS,Met Office,2020-04-16,11 SERVICES,GOVERNMENT SERVICES,GCAP UK LTD,438712,2550.89,991716093
BEIS,Met Office,2020-04-16,11 SERVICES,GOVERNMENT SERVICES,GCAP UK LTD,437864,13125,991716093
BEIS,Met Office,2020-04-30,11 SERVICES,GOVERNMENT SERVICES,GCAP UK LTD,441781,13125,991716093
BEIS,Met Office,2020-04-23,11 SERVICES,GOVERNMENT SERVICES,GEOSMART INFORMATION LTD,441343,5833,172271519
BEIS,Met Office,2020-04-16,11 SERVICES,GOVERNMENT SERVICES,HOGAN LOVELLS INTERNATIONAL LLP,440315,28625.5,GB123371543
BEIS,Met Office,2020-04-30,11 SERVICES,GOVERNMENT SERVICES,HOPSCOTCH CONSULTING,441583,9650,102099056
BEIS,Met Office,2020-04-01,11 SERVICES,GOVERNMENT SERVICES,"IBL SOFTWARE ENGINEERING, SPOL S.R.O.",439294,1884.58,SK2020241883
BEIS,Met Office,2020-04-01,11 SERVICES,GOVERNMENT SERVICES,"IBL SOFTWARE ENGINEERING, SPOL S.R.O.",439597,12431.99,SK2020241883
BEIS,Met Office,2020-04-22,08 SOFTWARE LICENCES,GOVERNMENT SERVICES,"IBL SOFTWARE ENGINEERING, SPOL S.R.O.",21025,25474.25,SK2020241883
BEIS,Met Office,2020-04-22,08 SOFTWARE LICENCES,GOVERNMENT SERVICES,"IBL SOFTWARE ENGINEERING, SPOL S.R.O.",21308,500281.8,SK2020241883
BEIS,Met Office,2020-04-15,12 INTERNATIONAL,GOVERNMENT SERVICES,IGAD CLIMATE PREDICTION & APPLICATIONS CNTR,440349,1519.62,-
BEIS,Met Office,2020-04-23,11 SERVICES,GOVERNMENT SERVICES,IMPERIAL COLLEGE,441560,60000,649926678
BEIS,Met Office,2020-04-23,11 SERVICES,GOVERNMENT SERVICES,IMPERIAL COLLEGE,441561,100000,649926678
BEIS,Met Office,2020-04-29,11 SERVICES,GOVERNMENT SERVICES,INFORKOMM MEDIA SERVICES LIMITED,441345,15045,0134119J
BEIS,Met Office,2020-04-02,11 SERVICES,GOVERNMENT SERVICES,INK COPYWRITERS LTD,440677,1000,850847214
BEIS,Met Office,2020-04-02,11 SERVICES,GOVERNMENT SERVICES,JEREMY BENN ASSOCIATES LIMITED,440398,10000,GB 665300941
BEIS,Met Office,2020-04-02,04 CONTRACTORS,GOVERNMENT SERVICES,JOBSEEKERS RECRUITMENT SERVICES LTD,440669,664.89,130 1297 14
BEIS,Met Office,2020-04-23,04 CONTRACTORS,GOVERNMENT SERVICES,JOBSEEKERS RECRUITMENT SERVICES LTD,441577,670.41,130 1297 14
BEIS,Met Office,2020-04-23,04 CONTRACTORS,GOVERNMENT SERVICES,JOBSEEKERS RECRUITMENT SERVICES LTD,441575,676.14,130 1297 14
BEIS,Met Office,2020-04-23,04 CONTRACTORS,GOVERNMENT SERVICES,JOBSEEKERS RECRUITMENT SERVICES LTD,441356,687.6,130 1297 14
BEIS,Met Office,2020-04-02,04 CONTRACTORS,GOVERNMENT SERVICES,JOBSEEKERS RECRUITMENT SERVICES LTD,440665,822.25,130 1297 14
BEIS,Met Office,2020-04-23,04 CONTRACTORS,GOVERNMENT SERVICES,JOBSEEKERS RECRUITMENT SERVICES LTD,441358,833.7,130 1297 14
BEIS,Met Office,2020-04-23,04 CONTRACTORS,GOVERNMENT SERVICES,JOBSEEKERS RECRUITMENT SERVICES LTD,441574,833.7,130 1297 14
BEIS,Met Office,2020-04-02,04 CONTRACTORS,GOVERNMENT SERVICES,JOBSEEKERS RECRUITMENT SERVICES LTD,440667,849.15,130 1297 14
BEIS,Met Office,2020-04-02,04 CONTRACTORS,GOVERNMENT SERVICES,JOBSEEKERS RECRUITMENT SERVICES LTD,440662,1043.63,130 1297 14
BEIS,Met Office,2020-04-15,11 SERVICES,GOVERNMENT SERVICES,KENYA METEOROLOGICAL DEPARTMENT,440443,6326.43,-
BEIS,Met Office,2020-04-16,03 STAFF COSTS T&S,GOVERNMENT SERVICES,MAWASEM LTD,441240,11791.76,197694731
BEIS,Met Office,2020-04-21,13 MISCELLANEOUS,GOVERNMENT SERVICES,MILLS AND SONS LTD,441540,-218.61,808366053
BEIS,Met Office,2020-04-02,13 MISCELLANEOUS,GOVERNMENT SERVICES,MILLS AND SONS LTD,440696,256.55,808366053
BEIS,Met Office,2020-04-02,11 SERVICES,GOVERNMENT SERVICES,NEW SIGNATURE UK LTD,438455,13662,187113309
BEIS,Met Office,2020-04-29,11 SERVICES,GOVERNMENT SERVICES,NORWEGIAN REFUGEE COUNCIL,440673,5400,-
BEIS,Met Office,2020-04-09,11 SERVICES,GOVERNMENT SERVICES,NPL Management Ltd,441045,90000,207523388
BEIS,Met Office,2020-04-09,11 SERVICES,GOVERNMENT SERVICES,Overseas Development Institute,440855,5486.78,187462962
BEIS,Met Office,2020-04-09,11 SERVICES,GOVERNMENT SERVICES,Overseas Development Institute,440806,8113.02,187462962
BEIS,Met Office,2020-04-09,11 SERVICES,GOVERNMENT SERVICES,Overseas Development Institute,440855,25980,187462962
BEIS,Met Office,2020-04-09,11 SERVICES,GOVERNMENT SERVICES,Overseas Development Institute,440855,77812.89,187462962
BEIS,Met Office,2020-04-23,11 SERVICES,GOVERNMENT SERVICES,PARLIAMENTARY & SCIENTIFIC COMMITTEE,441601,250,-
BEIS,Met Office,2020-04-30,11 SERVICES,GOVERNMENT SERVICES,RAND EUROPE,440768,47812.5,599625179
BEIS,Met Office,2020-04-08,11 SERVICES,GOVERNMENT SERVICES,Red Cross Red Crescent Climate Centre,21276,29454.72,N/A
BEIS,Met Office,2020-04-15,11 SERVICES,GOVERNMENT SERVICES,REDACTED � PERSONAL DATA,437009,996.7,-
BEIS,Met Office,2020-04-08,11 SERVICES,GOVERNMENT SERVICES,REGENTS OF THE UNIVERSITY OF COLORADO,9773,40570.98,-
BEIS,Met Office,2020-04-29,11 SERVICES,GOVERNMENT SERVICES,REGENTS OF THE UNIVERSITY OF COLORADO,9761,81141.96,-
BEIS,Met Office,2020-04-08,11 SERVICES,GOVERNMENT SERVICES,RIMES,9739,31467.81,-
BEIS,Met Office,2020-04-09,11 SERVICES,GOVERNMENT SERVICES,ROWE IT LTD,440764,706.25,924964394
BEIS,Met Office,2020-04-16,11 SERVICES,GOVERNMENT SERVICES,ROWE IT LTD,440995,3750,924964394
BEIS,Met Office,2020-04-09,08 SOFTWARE LICENCES,GOVERNMENT SERVICES,ROWE IT LTD,440860,6000,924964394
BEIS,Met Office,2020-04-09,11 SERVICES,GOVERNMENT SERVICES,ROWE IT LTD,440731,8032.5,924964394
BEIS,Met Office,2020-04-09,11 SERVICES,GOVERNMENT SERVICES,ROWE IT LTD,440805,12000,924964394
BEIS,Met Office,2020-04-09,11 SERVICES,GOVERNMENT SERVICES,ROWE IT LTD,440858,15330,924964394
BEIS,Met Office,2020-04-16,11 SERVICES,GOVERNMENT SERVICES,ROWE IT LTD,440995,24000,924964394
BEIS,Met Office,2020-04-30,11 SERVICES,GOVERNMENT SERVICES,SAYERS AND PARTNERS LLP,441799,70000,996 6059 57
BEIS,Met Office,2020-04-16,11 SERVICES,GOVERNMENT SERVICES,SCIENCE & TECHNOLOGY FACILITIES COUNCIL,441349,20000,618367325
BEIS,Met Office,2020-04-30,08 SOFTWARE LICENCES,GOVERNMENT SERVICES,SIGNAL SCIENCE LTD,440672,150000,GB 490 9170 29
BEIS,Met Office,2020-04-16,04 CONTRACTORS,GOVERNMENT SERVICES,SOLOS CONSULTANTS LTD,441088,4038.1,812035476
BEIS,Met Office,2020-04-16,04 CONTRACTORS,GOVERNMENT SERVICES,SOLOS CONSULTANTS LTD,441086,10000,812035476
BEIS,Met Office,2020-04-16,04 CONTRACTORS,GOVERNMENT SERVICES,SOLOS CONSULTANTS LTD,441089,10920,812035476
BEIS,Met Office,2020-04-23,11 SERVICES,GOVERNMENT SERVICES,The James Hutton Institute,441295,1000,GB108249520
BEIS,Met Office,2020-04-30,11 SERVICES,GOVERNMENT SERVICES,Trinity House,439784,480,243120414
BEIS,Met Office,2020-04-30,11 SERVICES,GOVERNMENT SERVICES,Trinity House,439785,600,243120414
BEIS,Met Office,2020-04-16,11 SERVICES,GOVERNMENT SERVICES,UK ATOMIC ENERGY AUTHORITY,441233,7500,GB570101391
BEIS,Met Office,2020-04-23,11 SERVICES,GOVERNMENT SERVICES,UK ATOMIC ENERGY AUTHORITY,441489,18700,GB570101391
BEIS,Met Office,2020-04-02,11 SERVICES,GOVERNMENT SERVICES,UK ATOMIC ENERGY AUTHORITY,440449,25000,GB570101391
BEIS,Met Office,2020-04-23,11 SERVICES,GOVERNMENT SERVICES,UK ATOMIC ENERGY AUTHORITY,441488,25000,GB570101391
BEIS,Met Office,2020-04-23,11 SERVICES,GOVERNMENT SERVICES,UK ATOMIC ENERGY AUTHORITY,441489,25000,GB570101391
BEIS,Met Office,2020-04-02,11 SERVICES,GOVERNMENT SERVICES,UK CENTRE FOR ECOLOGY & HYDROLOGY (UKCEH),440738,127973.17,336940192
BEIS,Met Office,2020-04-09,11 SERVICES,GOVERNMENT SERVICES,UKRI,440679,62500,GB287461957
BEIS,Met Office,2020-04-30,11 SERVICES,GOVERNMENT SERVICES,ULTRA ELECTRONICS LTD NUCLEAR CONTROL SYSTEMS,441648,10313.12,123340754
BEIS,Met Office,2020-04-23,11 SERVICES,GOVERNMENT SERVICES,ULTRA ELECTRONICS LTD NUCLEAR CONTROL SYSTEMS,441272,217332.25,123340754
BEIS,Met Office,2020-04-02,11 SERVICES,GOVERNMENT SERVICES,University Of Bristol,440629,42500,991261800
BEIS,Met Office,2020-04-30,11 SERVICES,GOVERNMENT SERVICES,UNIVERSITY OF EDINBURGH,441664,19369.74,592950700
BEIS,Met Office,2020-04-30,11 SERVICES,GOVERNMENT SERVICES,UNIVERSITY OF EDINBURGH,440682,322618.9,592950700
BEIS,Met Office,2020-04-09,11 SERVICES,GOVERNMENT SERVICES,UNIVERSITY OF EXETER,440733,65517.28,142047795
BEIS,Met Office,2020-04-16,11 SERVICES,GOVERNMENT SERVICES,University Of Leeds,441107,20150,613451470
BEIS,Met Office,2020-04-16,11 SERVICES,GOVERNMENT SERVICES,University Of Leeds,438789,24000,613451470
BEIS,Met Office,2020-04-09,11 SERVICES,GOVERNMENT SERVICES,University Of Leeds,437958,91427.2,613451470
BEIS,Met Office,2020-04-23,11 SERVICES,GOVERNMENT SERVICES,University Of Reading,441536,-27055,200012659
BEIS,Met Office,2020-04-09,11 SERVICES,GOVERNMENT SERVICES,University Of Reading,435211,10233.02,200012659
BEIS,Met Office,2020-04-30,11 SERVICES,GOVERNMENT SERVICES,University Of Reading,441650,17245.17,200012659
BEIS,Met Office,2020-04-23,11 SERVICES,GOVERNMENT SERVICES,University Of Reading,440994,27055,200012659
BEIS,Met Office,2020-04-09,11 SERVICES,GOVERNMENT SERVICES,University Of Reading,440821,61288.08,200012659
BEIS,Met Office,2020-04-02,11 SERVICES,GOVERNMENT SERVICES,University Of Reading,440430,129997.55,200012659
BEIS,Met Office,2020-04-09,11 SERVICES,GOVERNMENT SERVICES,University Of Reading,440766,146700.86,200012659
BEIS,Met Office,2020-04-09,11 SERVICES,GOVERNMENT SERVICES,University Of Strathclyde,441040,12806.25,GB261339762
BEIS,Met Office,2020-04-29,11 SERVICES,GOVERNMENT SERVICES,UNIVERSITY OF WISCONSIN-MADISON,441656,6001,-
BEIS,Met Office,2020-04-23,11 SERVICES,GOVERNMENT SERVICES,UNIVERSITY OF WORCESTER,441353,9600,100103412
BEIS,Met Office,2020-04-02,04 CONTRACTORS,GOVERNMENT SERVICES,WA CONSULTANTS LTD,440583,1510,876328977
BEIS,Met Office,2020-04-02,04 CONTRACTORS,GOVERNMENT SERVICES,WA CONSULTANTS LTD,440579,2178,876328977
BEIS,Met Office,2020-04-09,04 CONTRACTORS,GOVERNMENT SERVICES,WA CONSULTANTS LTD,440752,5400,876328977
BEIS,Met Office,2020-04-30,04 CONTRACTORS,GOVERNMENT SERVICES,WA CONSULTANTS LTD,441764,5940,876328977
BEIS,Met Office,2020-04-30,04 CONTRACTORS,GOVERNMENT SERVICES,WA CONSULTANTS LTD,441763,16786.8,876328977
BEIS,Met Office,2020-04-02,04 CONTRACTORS,GOVERNMENT SERVICES,WA CONSULTANTS LTD,440571,22848.7,876328977
BEIS,Met Office,2020-04-16,11 SERVICES,GOVERNMENT SERVICES,WALNUT UNLIMITED LIMITED,441076,2825,648857968
BEIS,Met Office,2020-04-08,11 SERVICES,GOVERNMENT SERVICES,World Meteorological Organization,439810,157359,-
BEIS,Met Office,2020-04-16,11 SERVICES,OPERATIONS,494 CONSULTING,439098,9701.09,332819305
BEIS,Met Office,2020-04-23,11 SERVICES,OPERATIONS,A Cloud Guru Ltd,440668,44880,GB230465925
BEIS,Met Office,2020-04-23,03 STAFF COSTS T&S,OPERATIONS,AIRPORT CAR RENTALS LTD,441541,320,-
BEIS,Met Office,2020-04-23,11 SERVICES,OPERATIONS,APPLIED SATELLITE TECHNOLOGY SYSTEMS LTD,440328,29.05,720108683
BEIS,Met Office,2020-04-23,11 SERVICES,OPERATIONS,APPLIED SATELLITE TECHNOLOGY SYSTEMS LTD,440334,29.05,720108683
BEIS,Met Office,2020-04-02,11 SERVICES,OPERATIONS,APPLIED SATELLITE TECHNOLOGY SYSTEMS LTD,440338,33.62,720108683
BEIS,Met Office,2020-04-23,12 INTERNATIONAL,OPERATIONS,APPLIED SATELLITE TECHNOLOGY SYSTEMS LTD,441576,33.62,720108683
BEIS,Met Office,2020-04-23,11 SERVICES,OPERATIONS,APPLIED SATELLITE TECHNOLOGY SYSTEMS LTD,441581,33.62,720108683
BEIS,Met Office,2020-04-30,11 SERVICES,OPERATIONS,APPLIED SATELLITE TECHNOLOGY SYSTEMS LTD,441584,33.62,720108683
BEIS,Met Office,2020-04-02,11 SERVICES,OPERATIONS,APPLIED SATELLITE TECHNOLOGY SYSTEMS LTD,440347,62.7,720108683
BEIS,Met Office,2020-04-09,11 SERVICES,OPERATIONS,APPLIED SATELLITE TECHNOLOGY SYSTEMS LTD,440330,116.42,720108683
BEIS,Met Office,2020-04-30,11 SERVICES,OPERATIONS,APPLIED SATELLITE TECHNOLOGY SYSTEMS LTD,441578,121.57,720108683
BEIS,Met Office,2020-04-02,11 SERVICES,OPERATIONS,APPLIED SATELLITE TECHNOLOGY SYSTEMS LTD,440333,131.26,720108683
BEIS,Met Office,2020-04-30,11 SERVICES,OPERATIONS,APPLIED SATELLITE TECHNOLOGY SYSTEMS LTD,441580,140.03,720108683
BEIS,Met Office,2020-04-02,11 SERVICES,OPERATIONS,APPLIED SATELLITE TECHNOLOGY SYSTEMS LTD,440329,291.45,720108683
BEIS,Met Office,2020-04-23,11 SERVICES,OPERATIONS,APPLIED SATELLITE TECHNOLOGY SYSTEMS LTD,441572,309.57,720108683
BEIS,Met Office,2020-04-02,11 SERVICES,OPERATIONS,APPLIED SATELLITE TECHNOLOGY SYSTEMS LTD,440341,9426.62,720108683
BEIS,Met Office,2020-04-30,11 SERVICES,OPERATIONS,APPLIED SATELLITE TECHNOLOGY SYSTEMS LTD,441573,10599.2,720108683
BEIS,Met Office,2020-04-23,13 MISCELLANEOUS,OPERATIONS,ARTHUR J. GALLAGHER INSURANCE BROKERS LIMITED,441369,12320,GB484746209
BEIS,Met Office,2020-04-30,07 EQUIPMENT,OPERATIONS,ATLAS COPCO COMPRESSORS,441555,0.58,207546371
BEIS,Met Office,2020-04-30,07 EQUIPMENT,OPERATIONS,ATLAS COPCO COMPRESSORS,441555,26.6,207546371
BEIS,Met Office,2020-04-22,11 SERVICES,OPERATIONS,BENTLEY WALKER LTD,9754,6521.29,107995930
BEIS,Met Office,2020-04-30,11 SERVICES,OPERATIONS,BOC LTD,441542,-91.59,226556555
BEIS,Met Office,2020-04-30,11 SERVICES,OPERATIONS,BOC LTD,441779,-4.12,226556555
BEIS,Met Office,2020-04-30,11 SERVICES,OPERATIONS,BOC LTD,440813,15027.9,226556555
BEIS,Met Office,2020-04-02,07 EQUIPMENT,OPERATIONS,BOWERS GROUP,440440,15610.5,GB172401984
BEIS,Met Office,2020-04-23,11 SERVICES,OPERATIONS,BUSINESS SUPPORT CENTRE LTD,441372,28,927365208
BEIS,Met Office,2020-04-16,STOCK,OPERATIONS,Campbell Scientific Ltd,440818,0,428453933
BEIS,Met Office,2020-04-16,STOCK,OPERATIONS,Campbell Scientific Ltd,440818,0,428453933
BEIS,Met Office,2020-04-16,STOCK,OPERATIONS,Campbell Scientific Ltd,440818,0,428453933
BEIS,Met Office,2020-04-16,11 SERVICES,OPERATIONS,Campbell Scientific Ltd,440818,21,428453933
BEIS,Met Office,2020-04-30,07 EQUIPMENT,OPERATIONS,Campbell Scientific Ltd,441567,25.2,428453933
BEIS,Met Office,2020-04-30,07 EQUIPMENT,OPERATIONS,Campbell Scientific Ltd,441567,28.8,428453933
BEIS,Met Office,2020-04-30,07 EQUIPMENT,OPERATIONS,Campbell Scientific Ltd,441567,28.8,428453933
BEIS,Met Office,2020-04-23,07 EQUIPMENT,OPERATIONS,Campbell Scientific Ltd,441566,51,428453933
BEIS,Met Office,2020-04-30,07 EQUIPMENT,OPERATIONS,Campbell Scientific Ltd,441567,51,428453933
BEIS,Met Office,2020-04-23,07 EQUIPMENT,OPERATIONS,Campbell Scientific Ltd,441566,75.6,428453933
BEIS,Met Office,2020-04-23,07 EQUIPMENT,OPERATIONS,Campbell Scientific Ltd,441566,86.4,428453933
BEIS,Met Office,2020-04-23,07 EQUIPMENT,OPERATIONS,Campbell Scientific Ltd,441566,86.4,428453933
BEIS,Met Office,2020-04-02,07 EQUIPMENT,OPERATIONS,Campbell Scientific Ltd,440172,123.3,428453933
BEIS,Met Office,2020-04-02,07 EQUIPMENT,OPERATIONS,Campbell Scientific Ltd,440172,124.2,428453933
BEIS,Met Office,2020-04-02,07 EQUIPMENT,OPERATIONS,Campbell Scientific Ltd,440172,182.7,428453933
BEIS,Met Office,2020-04-02,07 EQUIPMENT,OPERATIONS,Campbell Scientific Ltd,440172,547.2,428453933
BEIS,Met Office,2020-04-02,07 EQUIPMENT,OPERATIONS,Campbell Scientific Ltd,440172,609.7,428453933
BEIS,Met Office,2020-04-02,07 EQUIPMENT,OPERATIONS,Campbell Scientific Ltd,440172,934.2,428453933
BEIS,Met Office,2020-04-16,STOCK,OPERATIONS,Campbell Scientific Ltd,440818,964.8,428453933
BEIS,Met Office,2020-04-30,07 EQUIPMENT,OPERATIONS,Campbell Scientific Ltd,441567,1030.05,428453933
BEIS,Met Office,2020-04-02,07 EQUIPMENT,OPERATIONS,Campbell Scientific Ltd,440172,1316.88,428453933
BEIS,Met Office,2020-04-16,STOCK,OPERATIONS,Campbell Scientific Ltd,440818,2454.3,428453933
BEIS,Met Office,2020-04-23,07 EQUIPMENT,OPERATIONS,Campbell Scientific Ltd,441566,3090.15,428453933
BEIS,Met Office,2020-04-16,STOCK,OPERATIONS,Campbell Scientific Ltd,440818,4104,428453933
BEIS,Met Office,2020-04-16,03 STAFF COSTS T&S,OPERATIONS,CARTUS FINANCING LTD,441268,86.07,768489458
BEIS,Met Office,2020-04-16,03 STAFF COSTS T&S,OPERATIONS,CARTUS LTD,441266,156.8,768489458
BEIS,Met Office,2020-04-02,03 STAFF COSTS T&S,OPERATIONS,CARTUS LTD,439753,200,768489458
BEIS,Met Office,2020-04-02,03 STAFF COSTS T&S,OPERATIONS,CARTUS LTD,439749,250,768489458
BEIS,Met Office,2020-04-02,03 STAFF COSTS T&S,OPERATIONS,CARTUS LTD,439751,250,768489458
BEIS,Met Office,2020-04-02,11 SERVICES,OPERATIONS,CARTUS LTD,439748,575,768489458
BEIS,Met Office,2020-04-16,03 STAFF COSTS T&S,OPERATIONS,CARTUS LTD,441275,809,768489458
BEIS,Met Office,2020-04-16,03 STAFF COSTS T&S,OPERATIONS,CARTUS LTD,441267,840,768489458
BEIS,Met Office,2020-04-02,03 STAFF COSTS T&S,OPERATIONS,CARTUS LTD,439747,949.51,768489458
BEIS,Met Office,2020-04-02,03 STAFF COSTS T&S,OPERATIONS,CARTUS LTD,439745,1956.43,768489458
BEIS,Met Office,2020-04-09,11 SERVICES,OPERATIONS,CATALYST IT,440828,6.66,978169262
BEIS,Met Office,2020-04-09,11 SERVICES,OPERATIONS,CATALYST IT,440828,150,978169262
BEIS,Met Office,2020-04-09,11 SERVICES,OPERATIONS,CATALYST IT,440828,1080.01,978169262
BEIS,Met Office,2020-04-02,STOCK,OPERATIONS,CHARNWOOD FASTENERS LIMITED,440351,0,355315757
BEIS,Met Office,2020-04-02,11 SERVICES,OPERATIONS,CHARNWOOD FASTENERS LIMITED,440351,15,355315757
BEIS,Met Office,2020-04-02,STOCK,OPERATIONS,CHARNWOOD FASTENERS LIMITED,440351,1170,355315757
BEIS,Met Office,2020-04-30,11 SERVICES,OPERATIONS,CLOUDREACH EUROPE LIMITED,441665,7333.36,978187168
BEIS,Met Office,2020-04-16,05 CONSULTANTS,OPERATIONS,CMC PARTNERSHIP CONSULTANCY LTD,441009,12410,305803330
BEIS,Met Office,2020-04-16,05 CONSULTANTS,OPERATIONS,CMC PARTNERSHIP CONSULTANCY LTD,441237,18900,305803330
BEIS,Met Office,2020-04-09,05 CONSULTANTS,OPERATIONS,CMC PARTNERSHIP CONSULTANCY LTD,440825,20790,305803330
BEIS,Met Office,2020-04-08,11 SERVICES,OPERATIONS,COLLECTE LOCALISATION SATELLITES (C.L.S.),21271,52.03,FR95338034390
BEIS,Met Office,2020-04-22,11 SERVICES,OPERATIONS,COLLECTE LOCALISATION SATELLITES (C.L.S.),21403,57.25,FR95338034390
BEIS,Met Office,2020-04-08,11 SERVICES,OPERATIONS,COLLECTE LOCALISATION SATELLITES (C.L.S.),21273,169.97,FR95338034390
BEIS,Met Office,2020-04-08,11 SERVICES,OPERATIONS,COLLECTE LOCALISATION SATELLITES (C.L.S.),21270,6835.19,FR95338034390
BEIS,Met Office,2020-04-08,11 SERVICES,OPERATIONS,COLLECTE LOCALISATION SATELLITES (C.L.S.),21272,10846.69,FR95338034390
BEIS,Met Office,2020-04-01,PLANT AND EQUIPMENT,OPERATIONS,COMMUNICATIONS & POWER IND. EUROPE LTD,9748,69079.28,664103850
BEIS,Met Office,2020-04-09,12 INTERNATIONAL,OPERATIONS,CROWN AGENTS BANK,440838,12019,-
BEIS,Met Office,2020-04-16,11 SERVICES,OPERATIONS,DHL INTERNATIONAL (UK) LTD,431812,-11,751812341
BEIS,Met Office,2020-04-16,11 SERVICES,OPERATIONS,DHL INTERNATIONAL (UK) LTD,433197,-11,751812341
BEIS,Met Office,2020-04-16,11 SERVICES,OPERATIONS,DHL INTERNATIONAL (UK) LTD,436890,-11,751812341
BEIS,Met Office,2020-04-16,11 SERVICES,OPERATIONS,DHL INTERNATIONAL (UK) LTD,440993,523.9,751812341
BEIS,Met Office,2020-04-16,11 SERVICES,OPERATIONS,DSTL,441228,790.99,888805166
BEIS,Met Office,2020-04-01,11 SERVICES,OPERATIONS,"EUTELSAT, S.A.",21267,2858.32,-
BEIS,Met Office,2020-04-29,11 SERVICES,OPERATIONS,"EUTELSAT, S.A.",21331,3052.19,-
BEIS,Met Office,2020-04-02,03 STAFF COSTS T&S,OPERATIONS,FALKLAND ISLAND COMPANY LTD,440336,20,N/A
BEIS,Met Office,2020-04-02,03 STAFF COSTS T&S,OPERATIONS,FALKLAND ISLAND COMPANY LTD,440335,69.81,N/A
BEIS,Met Office,2020-04-23,03 STAFF COSTS T&S,OPERATIONS,FALKLAND ISLAND COMPANY LTD,441360,700,N/A
BEIS,Met Office,2020-04-23,03 STAFF COSTS T&S,OPERATIONS,FALKLAND ISLAND COMPANY LTD,441375,700,N/A
BEIS,Met Office,2020-04-23,03 STAFF COSTS T&S,OPERATIONS,FALKLAND ISLAND COMPANY LTD,441376,700,N/A
BEIS,Met Office,2020-04-01,10 EQUIPMENT MAINTENANCE,OPERATIONS,Finnish Meteorological Institute,21299,2573.27,FI02446647
BEIS,Met Office,2020-04-23,10 EQUIPMENT MAINTENANCE,OPERATIONS,FLANN MICROWAVE LTD,439079,379,143418974
BEIS,Met Office,2020-04-16,10 EQUIPMENT MAINTENANCE,OPERATIONS,FLANN MICROWAVE LTD,440826,503,143418974
BEIS,Met Office,2020-04-30,11 SERVICES,OPERATIONS,FRANCIS CLARK LLP,439416,4230,855910212
BEIS,Met Office,2020-04-16,11 SERVICES,OPERATIONS,Goldisc Limited,440625,90,861294416
BEIS,Met Office,2020-04-16,10 EQUIPMENT MAINTENANCE,OPERATIONS,Goldisc Limited,440625,10410,861294416
BEIS,Met Office,2020-04-16,STOCK,OPERATIONS,H & B SENSORS LTD,441011,0,321828666
BEIS,Met Office,2020-04-16,11 SERVICES,OPERATIONS,H & B SENSORS LTD,441011,25,321828666
BEIS,Met Office,2020-04-16,STOCK,OPERATIONS,H & B SENSORS LTD,441011,6715,321828666
BEIS,Met Office,2020-04-02,04 CONTRACTORS,OPERATIONS,HAYS SPECIALIST RECRUITMENT LTD,440399,366.16,773695871
BEIS,Met Office,2020-04-09,04 CONTRACTORS,OPERATIONS,HAYS SPECIALIST RECRUITMENT LTD,440808,366.16,773695871
BEIS,Met Office,2020-04-16,04 CONTRACTORS,OPERATIONS,HAYS SPECIALIST RECRUITMENT LTD,441111,366.16,773695871
BEIS,Met Office,2020-04-23,04 CONTRACTORS,OPERATIONS,HAYS SPECIALIST RECRUITMENT LTD,441388,366.16,773695871
BEIS,Met Office,2020-04-09,03 STAFF COSTS T&S,OPERATIONS,HITACHI CAPITAL VEHICLE SOLUTIONS,441035,295.93,GB 823 8248 22
BEIS,Met Office,2020-04-09,03 STAFF COSTS T&S,OPERATIONS,HITACHI CAPITAL VEHICLE SOLUTIONS,441035,3091.44,GB 823 8248 22
BEIS,Met Office,2020-04-02,12 INTERNATIONAL,OPERATIONS,IDEMS INTERNATIONAL COMMUNITY INTEREST CO,440661,4000,-
BEIS,Met Office,2020-04-02,12 INTERNATIONAL,OPERATIONS,IDEMS INTERNATIONAL COMMUNITY INTEREST CO,440661,13000,-
BEIS,Met Office,2020-04-23,04 CONTRACTORS,OPERATIONS,JOBSEEKERS RECRUITMENT SERVICES LTD,441539,-767.18,130 1297 14
BEIS,Met Office,2020-04-23,04 CONTRACTORS,OPERATIONS,JOBSEEKERS RECRUITMENT SERVICES LTD,441538,261.29,130 1297 14
BEIS,Met Office,2020-04-23,04 CONTRACTORS,OPERATIONS,JOBSEEKERS RECRUITMENT SERVICES LTD,441558,390.92,130 1297 14
BEIS,Met Office,2020-04-23,04 CONTRACTORS,OPERATIONS,JOBSEEKERS RECRUITMENT SERVICES LTD,441537,505.89,130 1297 14
BEIS,Met Office,2020-04-23,04 CONTRACTORS,OPERATIONS,JOBSEEKERS RECRUITMENT SERVICES LTD,441579,521.22,130 1297 14
BEIS,Met Office,2020-04-02,04 CONTRACTORS,OPERATIONS,JOBSEEKERS RECRUITMENT SERVICES LTD,440670,790.5,130 1297 14
BEIS,Met Office,2020-04-30,07 EQUIPMENT,OPERATIONS,KEMTRON LTD,441790,19.95,GB719971196
BEIS,Met Office,2020-04-30,07 EQUIPMENT,OPERATIONS,KEMTRON LTD,441790,80,GB719971196
BEIS,Met Office,2020-04-30,07 EQUIPMENT,OPERATIONS,KEMTRON LTD,441790,121.5,GB719971196
BEIS,Met Office,2020-04-30,07 EQUIPMENT,OPERATIONS,KEMTRON LTD,441790,175.5,GB719971196
BEIS,Met Office,2020-04-02,12 INTERNATIONAL,OPERATIONS,MACITECHSY SOLUTIONS,440627,135.7,-
BEIS,Met Office,2020-04-02,12 INTERNATIONAL,OPERATIONS,MACITECHSY SOLUTIONS,440627,1476,-
BEIS,Met Office,2020-04-02,11 SERVICES,OPERATIONS,MERCURE SOUTHGATE,440359,1912.5,845619305
BEIS,Met Office,2020-04-01,STOCK,OPERATIONS,METSPEC LTD,440263,0,738825202
BEIS,Met Office,2020-04-01,11 SERVICES,OPERATIONS,METSPEC LTD,440263,204,738825202
BEIS,Met Office,2020-04-01,STOCK,OPERATIONS,METSPEC LTD,440263,15510,738825202
BEIS,Met Office,2020-04-02,11 SERVICES,OPERATIONS,MOMENTUM INCORPORATED,440589,13320,598958541
BEIS,Met Office,2020-04-02,12 INTERNATIONAL,OPERATIONS,National Oceanography Centre,440666,14000,GB 338 5487 64
BEIS,Met Office,2020-04-16,08 SOFTWARE LICENCES,OPERATIONS,NEW SIGNATURE UK LTD,441114,76892,187113309
BEIS,Met Office,2020-04-15,11 SERVICES,OPERATIONS,NSSL GLOBAL LTD,9746,51.55,725151948
BEIS,Met Office,2020-04-15,11 SERVICES,OPERATIONS,NSSL GLOBAL LTD,9747,196.77,725151948
BEIS,Met Office,2020-04-02,04 CONTRACTORS,OPERATIONS,OUTSOURCE UK LIMITED,440633,7000,576118722
BEIS,Met Office,2020-04-09,04 CONTRACTORS,OPERATIONS,OUTSOURCE UK LIMITED,440646,7125,576118722
BEIS,Met Office,2020-04-09,04 CONTRACTORS,OPERATIONS,OUTSOURCE UK LIMITED,440970,8043.4,576118722
BEIS,Met Office,2020-04-09,04 CONTRACTORS,OPERATIONS,OUTSOURCE UK LIMITED,440789,9462.4,576118722
BEIS,Met Office,2020-04-02,04 CONTRACTORS,OPERATIONS,OUTSOURCE UK LIMITED,440616,10054.25,576118722
BEIS,Met Office,2020-04-02,04 CONTRACTORS,OPERATIONS,OUTSOURCE UK LIMITED,440612,12250,576118722
BEIS,Met Office,2020-04-02,13 MISCELLANEOUS,OPERATIONS,PAA\VQSET LTD,439952,2905,899796511
BEIS,Met Office,2020-04-22,07 EQUIPMENT,OPERATIONS,PLANET OCEAN LTD,9762,134674.66,834477212
BEIS,Met Office,2020-04-02,11 SERVICES,OPERATIONS,PREDERI,440586,3000,135 2949 04
BEIS,Met Office,2020-04-02,11 SERVICES,OPERATIONS,PREDERI,440586,13200,135 2949 04
BEIS,Met Office,2020-04-22,08 SOFTWARE LICENCES,OPERATIONS,PTC Inc,9718,901.06,-
BEIS,Met Office,2020-04-02,04 CONTRACTORS,OPERATIONS,QUALSERV CONSULTING LTD,440655,8246.16,719067718
BEIS,Met Office,2020-04-02,04 CONTRACTORS,OPERATIONS,QUALSERV CONSULTING LTD,440651,11250,719067718
BEIS,Met Office,2020-04-01,12 INTERNATIONAL,OPERATIONS,REDACTED � PERSONAL DATA,9755,214.8,-
BEIS,Met Office,2020-04-01,12 INTERNATIONAL,OPERATIONS,REDACTED � PERSONAL DATA,9760,2825.84,-
BEIS,Met Office,2020-04-01,12 INTERNATIONAL,OPERATIONS,REDACTED � PERSONAL DATA,9755,3007.18,-
BEIS,Met Office,2020-04-09,08 SOFTWARE LICENCES,OPERATIONS,ROCKSURE SYSTEMS LTD,440830,1728,859951462
BEIS,Met Office,2020-04-09,11 SERVICES,OPERATIONS,ROCKSURE SYSTEMS LTD,441046,1728,859951462
BEIS,Met Office,2020-04-09,11 SERVICES,OPERATIONS,ROWE IT LTD,440802,2456.25,924964394
BEIS,Met Office,2020-04-09,11 SERVICES,OPERATIONS,ROWE IT LTD,440803,32803.75,924964394
BEIS,Met Office,2020-04-09,11 SERVICES,OPERATIONS,ROWE IT LTD,440740,56557.5,924964394
BEIS,Met Office,2020-04-01,STOCK,OPERATIONS,SCIENCE PUMP CORPORATION,9745,0,NOVAT
BEIS,Met Office,2020-04-01,STOCK,OPERATIONS,SCIENCE PUMP CORPORATION,9745,13293.84,NOVAT
BEIS,Met Office,2020-04-16,10 EQUIPMENT MAINTENANCE,OPERATIONS,SERVELEC TECHNOLOGIES UK LTD,441231,17095,648280518
BEIS,Met Office,2020-04-16,08 SOFTWARE LICENCES,OPERATIONS,SOFTCAT LTD,441230,31250,491848503
BEIS,Met Office,2020-04-09,11 SERVICES,OPERATIONS,SOFTWIRE TECHNOLOGY LIMITED,440815,2520,752 1253 57
BEIS,Met Office,2020-04-16,04 CONTRACTORS,OPERATIONS,SOLOS CONSULTANTS LTD,441089,2730,812035476
BEIS,Met Office,2020-04-16,04 CONTRACTORS,OPERATIONS,SOLOS CONSULTANTS LTD,441253,6452.78,812035476
BEIS,Met Office,2020-04-16,04 CONTRACTORS,OPERATIONS,SOLOS CONSULTANTS LTD,441103,11130,812035476
BEIS,Met Office,2020-04-16,04 CONTRACTORS,OPERATIONS,SOLOS CONSULTANTS LTD,441109,11791.75,812035476
BEIS,Met Office,2020-04-09,PLANT AND EQUIPMENT,OPERATIONS,SOUTHERN ROPES,441047,550,GB 891 9765 57
BEIS,Met Office,2020-04-09,PLANT AND EQUIPMENT,OPERATIONS,SOUTHERN ROPES,441047,550,GB 891 9765 57
BEIS,Met Office,2020-04-09,PLANT AND EQUIPMENT,OPERATIONS,SOUTHERN ROPES,441047,945,GB 891 9765 57
BEIS,Met Office,2020-04-09,07 EQUIPMENT,OPERATIONS,SOUTHERN ROPES,441047,1375,GB 891 9765 57
BEIS,Met Office,2020-04-09,PLANT AND EQUIPMENT,OPERATIONS,SOUTHERN ROPES,441047,11500,GB 891 9765 57
BEIS,Met Office,2020-04-09,PLANT AND EQUIPMENT,OPERATIONS,SOUTHERN ROPES,441047,11500,GB 891 9765 57
BEIS,Met Office,2020-04-09,07 EQUIPMENT,OPERATIONS,SOUTHERN ROPES,441047,19500,GB 891 9765 57
BEIS,Met Office,2020-04-01,12 INTERNATIONAL,OPERATIONS,SPREP,9743,98807.44,-
BEIS,Met Office,2020-04-16,11 SERVICES,OPERATIONS,SURE SOUTH ATLANTIC LTD,441125,563,-
BEIS,Met Office,2020-04-23,11 SERVICES,OPERATIONS,SURE SOUTH ATLANTIC LTD,441351,1673.84,NOVATREG
BEIS,Met Office,2020-04-16,11 SERVICES,OPERATIONS,SURE SOUTH ATLANTIC LTD,441269,4743,-
BEIS,Met Office,2020-04-01,07 EQUIPMENT,OPERATIONS,SWALE TECHNOLOGIES LTD,9758,451608.48,530846451
BEIS,Met Office,2020-04-23,11 SERVICES,OPERATIONS,The James Hutton Institute,441282,13899.6,GB108249520
BEIS,Met Office,2020-04-01,12 INTERNATIONAL,OPERATIONS,TOTEX CORPORATION,440462,20.9,-
BEIS,Met Office,2020-04-01,12 INTERNATIONAL,OPERATIONS,TOTEX CORPORATION,440462,319,-
BEIS,Met Office,2020-04-01,12 INTERNATIONAL,OPERATIONS,TOTEX CORPORATION,440462,3360,-
BEIS,Met Office,2020-04-23,10 EQUIPMENT MAINTENANCE,OPERATIONS,Trinity House,439812,3003.8,243120414
BEIS,Met Office,2020-04-23,07 EQUIPMENT,OPERATIONS,TRIZO LIMITED,441549,15.94,921 2851 43
BEIS,Met Office,2020-04-23,07 EQUIPMENT,OPERATIONS,TRIZO LIMITED,441549,370.8,921 2851 43
BEIS,Met Office,2020-04-23,07 EQUIPMENT,OPERATIONS,TRIZO LIMITED,441549,567.75,921 2851 43
BEIS,Met Office,2020-04-15,STOCK,OPERATIONS,VAISALA OYJ,21256,0,FI01244162
BEIS,Met Office,2020-04-08,12 INTERNATIONAL,OPERATIONS,VAISALA OYJ,21253,492.47,FI01244162
BEIS,Met Office,2020-04-15,STOCK,OPERATIONS,VAISALA OYJ,21256,2772.12,FI01244162
BEIS,Met Office,2020-04-08,12 INTERNATIONAL,OPERATIONS,VAISALA OYJ,21253,37337.58,FI01244162
BEIS,Met Office,2020-04-23,STOCK,OPERATIONS,VWR INTERNATIONAL LTD,441550,0,823853225
BEIS,Met Office,2020-04-23,STOCK,OPERATIONS,VWR INTERNATIONAL LTD,441550,0,823853225
BEIS,Met Office,2020-04-23,11 SERVICES,OPERATIONS,VWR INTERNATIONAL LTD,441550,22.8,823853225
BEIS,Met Office,2020-04-23,STOCK,OPERATIONS,VWR INTERNATIONAL LTD,441550,110.5,823853225
BEIS,Met Office,2020-04-23,STOCK,OPERATIONS,VWR INTERNATIONAL LTD,441550,183,823853225
BEIS,Met Office,2020-04-02,04 CONTRACTORS,OPERATIONS,WA CONSULTANTS LTD,440574,5225,876328977
BEIS,Met Office,2020-04-02,04 CONTRACTORS,OPERATIONS,WA CONSULTANTS LTD,440575,5225,876328977
BEIS,Met Office,2020-04-23,04 CONTRACTORS,OPERATIONS,WA CONSULTANTS LTD,441463,6600,876328977
BEIS,Met Office,2020-04-09,04 CONTRACTORS,OPERATIONS,WA CONSULTANTS LTD,440745,15000,876328977
BEIS,Met Office,2020-04-01,12 INTERNATIONAL,OPERATIONS,World Meteorological Organization,440459,60000,-
BEIS,Met Office,2020-04-09,11 SERVICES,OPERATIONS,WORLDPAY LTD,440823,21.75,991280207
BEIS,Met Office,2020-04-09,11 SERVICES,OPERATIONS,WORLDPAY LTD,440741,1041.22,991280207
BEIS,Met Office,2020-04-09,11 SERVICES,OPERATIONS,WORLDPAY LTD,440739,1148.09,991280207
BEIS,Met Office,2020-04-23,CYCLESCHEME,OTHER,CYCLESCHEME LTD,441553,399.99,850403556
BEIS,Met Office,2020-04-30,CYCLESCHEME,OTHER,CYCLESCHEME LTD,441760,458.33,850403556
BEIS,Met Office,2020-04-02,CYCLESCHEME,OTHER,CYCLESCHEME LTD,440437,612.5,850403556
BEIS,Met Office,2020-04-02,CYCLESCHEME,OTHER,CYCLESCHEME LTD,440439,625,850403556
BEIS,Met Office,2020-04-30,CYCLESCHEME,OTHER,CYCLESCHEME LTD,441759,729.71,850403556
BEIS,Met Office,2020-04-02,CYCLESCHEME,OTHER,CYCLESCHEME LTD,440438,836.67,850403556
BEIS,Met Office,2020-04-16,PAYE AND VAT,OTHER,DHL INTERNATIONAL (UK) LTD,436890,-16.04,751812341
BEIS,Met Office,2020-04-16,PAYE AND VAT,OTHER,DHL INTERNATIONAL (UK) LTD,433197,-10,751812341
BEIS,Met Office,2020-04-23,TRADE CREDITORS,OTHER,NATWEST COMMERCIAL CARDS DIVISION,441610,94156.37,N/A
BEIS,Met Office,2020-04-09,13 MISCELLANEOUS,SCIENCE,AB MULTIMEDIA LTD,440974,7200,849333502
BEIS,Met Office,2020-04-23,07 EQUIPMENT,SCIENCE,COVE INDUSTRIAL ENTERPRISES LTD,441347,251.45,211984272
BEIS,Met Office,2020-04-09,11 SERVICES,SCIENCE,CRANFIELD AEROSPACE SOLUTIONS LTD,440742,51043,608596509
BEIS,Met Office,2020-04-23,13 MISCELLANEOUS,SCIENCE,IMPERIAL COLLEGE,441564,333,649926678
BEIS,Met Office,2020-04-23,11 SERVICES,SCIENCE,Plymouth Marine Laboratory,441389,30000,927105830
BEIS,Met Office,2020-04-01,11 SERVICES,SCIENCE,REDACTED � PERSONAL DATA,21264,1256.65,-
BEIS,Met Office,2020-04-08,11 SERVICES,SCIENCE,REDACTED � PERSONAL DATA,21373,1341.89,-
BEIS,Met Office,2020-04-09,11 SERVICES,SCIENCE,UNIVERSITY OF EXETER,440776,18500,142047795
BEIS,Met Office,2020-04-23,13 MISCELLANEOUS,SCIENCE,University Of Leeds,441587,1250,613451470
BEIS,Met Office,2020-04-23,11 SERVICES,SCIENCE,University Of Leeds,441612,125000,613451470
BEIS,Met Office,2020-04-09,11 SERVICES,SCIENCE,UNIVERSITY OF OXFORD,440851,25000,125506730
BEIS,Met Office,2020-04-02,13 MISCELLANEOUS,SCIENCE,University Of Reading,440420,333.33,200012659
BEIS,Met Office,2020-04-02,13 MISCELLANEOUS,SCIENCE,University Of Reading,440421,333.33,200012659
BEIS,Met Office,2020-04-02,13 MISCELLANEOUS,SCIENCE,University Of Reading,440423,333.33,200012659
BEIS,Met Office,2020-04-02,13 MISCELLANEOUS,SCIENCE,University Of Reading,440424,333.33,200012659
BEIS,Met Office,2020-04-23,13 MISCELLANEOUS,SCIENCE,University Of Reading,441350,333.33,200012659
BEIS,Met Office,2020-04-23,13 MISCELLANEOUS,SCIENCE,University Of Reading,441354,333.33,200012659
BEIS,Met Office,2020-04-09,11 SERVICES,SCIENCE,University Of Reading,440787,24660.5,200012659
BEIS,Met Office,2020-04-09,11 SERVICES,SCIENCE,University Of Reading,440792,24660.5,200012659
BEIS,Met Office,2020-04-09,04 CONTRACTORS,SCIENCE,WA CONSULTANTS LTD,440754,10900,876328977
BEIS,Met Office,2020-04-09,11 SERVICES,STRATEGIC INVESTMENT,ADVANTAGE MARKET INTELLIGENCE LTD,440847,4400,191125622
BEIS,Met Office,2020-04-02,11 SERVICES,STRATEGIC INVESTMENT,BAE SYSTEMS APPLIED INTELLIGENCE LIMITED,438918,18512.25,GB641407169
BEIS,Met Office,2020-04-02,11 SERVICES,STRATEGIC INVESTMENT,BAE SYSTEMS APPLIED INTELLIGENCE LIMITED,440167,19631.4,GB641407169
BEIS,Met Office,2020-04-30,11 SERVICES,STRATEGIC INVESTMENT,BAE SYSTEMS APPLIED INTELLIGENCE LIMITED,441772,134814.37,GB641407169
BEIS,Met Office,2020-04-09,11 SERVICES,STRATEGIC INVESTMENT,CACI LTD,440984,66048.25,380609841
BEIS,Met Office,2020-04-09,11 SERVICES,STRATEGIC INVESTMENT,Campbell Scientific Ltd,440782,1,428453933
BEIS,Met Office,2020-04-09,INFORMATION TECHNOLOGY,STRATEGIC INVESTMENT,Campbell Scientific Ltd,440782,72,428453933
BEIS,Met Office,2020-04-09,11 SERVICES,STRATEGIC INVESTMENT,Campbell Scientific Ltd,440782,870,428453933
BEIS,Met Office,2020-04-09,INFORMATION TECHNOLOGY,STRATEGIC INVESTMENT,Campbell Scientific Ltd,440781,1522.6,428453933
BEIS,Met Office,2020-04-09,INFORMATION TECHNOLOGY,STRATEGIC INVESTMENT,Campbell Scientific Ltd,440856,1873.8,428453933
BEIS,Met Office,2020-04-09,INFORMATION TECHNOLOGY,STRATEGIC INVESTMENT,Campbell Scientific Ltd,440856,2633.75,428453933
BEIS,Met Office,2020-04-22,11 SERVICES,STRATEGIC INVESTMENT,ELASTICSEARCH LTD,9783,743.13,155790484
BEIS,Met Office,2020-04-02,11 SERVICES,STRATEGIC INVESTMENT,ELASTICSEARCH LTD,440432,12160,155790484
BEIS,Met Office,2020-04-02,11 SERVICES,STRATEGIC INVESTMENT,ELASTICSEARCH LTD,440432,35384.56,155790484
BEIS,Met Office,2020-04-16,05 CONSULTANTS,STRATEGIC INVESTMENT,Ernst & Young Llp,441129,12274,773831408
BEIS,Met Office,2020-04-02,05 CONSULTANTS,STRATEGIC INVESTMENT,Ernst & Young Llp,440468,66928,773831408
BEIS,Met Office,2020-04-16,05 CONSULTANTS,STRATEGIC INVESTMENT,Ernst & Young Llp,441129,97422,773831408
BEIS,Met Office,2020-04-02,05 CONSULTANTS,STRATEGIC INVESTMENT,Ernst & Young Llp,440396,122304,773831408
BEIS,Met Office,2020-04-30,11 SERVICES,STRATEGIC INVESTMENT,FLYFORM LTD,440730,575.43,237333808
BEIS,Met Office,2020-04-16,04 CONTRACTORS,STRATEGIC INVESTMENT,HAYS SPECIALIST RECRUITMENT LTD,441095,407.7,773695871
BEIS,Met Office,2020-04-30,04 CONTRACTORS,STRATEGIC INVESTMENT,HAYS SPECIALIST RECRUITMENT LTD,441785,422.8,773695871
BEIS,Met Office,2020-04-23,04 CONTRACTORS,STRATEGIC INVESTMENT,HAYS SPECIALIST RECRUITMENT LTD,441557,430.35,773695871
BEIS,Met Office,2020-04-02,04 CONTRACTORS,STRATEGIC INVESTMENT,HAYS SPECIALIST RECRUITMENT LTD,440403,536.05,773695871
BEIS,Met Office,2020-04-02,04 CONTRACTORS,STRATEGIC INVESTMENT,HAYS SPECIALIST RECRUITMENT LTD,440402,543.6,773695871
BEIS,Met Office,2020-04-09,04 CONTRACTORS,STRATEGIC INVESTMENT,HAYS SPECIALIST RECRUITMENT LTD,440816,543.6,773695871
BEIS,Met Office,2020-04-22,11 SERVICES,STRATEGIC INVESTMENT,"IBL SOFTWARE ENGINEERING, SPOL S.R.O.",440448,3004.81,SK2020241883
BEIS,Met Office,2020-04-23,11 SERVICES,STRATEGIC INVESTMENT,NTT DATA UK LTD,441377,465.74,GB159334590
BEIS,Met Office,2020-04-23,11 SERVICES,STRATEGIC INVESTMENT,NTT DATA UK LTD,441378,2530,GB159334590
BEIS,Met Office,2020-04-09,04 CONTRACTORS,STRATEGIC INVESTMENT,OUTSOURCE UK LIMITED,440972,2358.95,576118722
BEIS,Met Office,2020-04-09,04 CONTRACTORS,STRATEGIC INVESTMENT,OUTSOURCE UK LIMITED,440794,2461.55,576118722
BEIS,Met Office,2020-04-09,04 CONTRACTORS,STRATEGIC INVESTMENT,OUTSOURCE UK LIMITED,440791,7076.85,576118722
BEIS,Met Office,2020-04-09,04 CONTRACTORS,STRATEGIC INVESTMENT,OUTSOURCE UK LIMITED,440973,7076.85,576118722
BEIS,Met Office,2020-04-02,04 CONTRACTORS,STRATEGIC INVESTMENT,OUTSOURCE UK LIMITED,440611,8347.92,576118722
BEIS,Met Office,2020-04-02,04 CONTRACTORS,STRATEGIC INVESTMENT,OUTSOURCE UK LIMITED,440601,11794.75,576118722
BEIS,Met Office,2020-04-02,04 CONTRACTORS,STRATEGIC INVESTMENT,QUALSERV CONSULTING LTD,440649,8737,719067718
BEIS,Met Office,2020-04-09,04 CONTRACTORS,STRATEGIC INVESTMENT,QUALSERV CONSULTING LTD,440772,11250,719067718
BEIS,Met Office,2020-04-02,04 CONTRACTORS,STRATEGIC INVESTMENT,QUALSERV CONSULTING LTD,440658,12384,719067718
BEIS,Met Office,2020-04-16,04 CONTRACTORS,STRATEGIC INVESTMENT,QUALSERV CONSULTING LTD,441235,12858.75,719067718
BEIS,Met Office,2020-04-30,04 CONTRACTORS,STRATEGIC INVESTMENT,REED,441766,7200,835515525
BEIS,Met Office,2020-04-02,04 CONTRACTORS,STRATEGIC INVESTMENT,REED,440592,10000,835515525
BEIS,Met Office,2020-04-09,11 SERVICES,STRATEGIC INVESTMENT,ROWE IT LTD,440763,16500,924964394
BEIS,Met Office,2020-04-09,11 SERVICES,STRATEGIC INVESTMENT,ROWE IT LTD,440729,81181.25,924964394
BEIS,Met Office,2020-04-09,11 SERVICES,STRATEGIC INVESTMENT,SOFTCAT LTD,440849,504,491848503
BEIS,Met Office,2020-04-16,04 CONTRACTORS,STRATEGIC INVESTMENT,SOLOS CONSULTANTS LTD,441087,7700,812035476
BEIS,Met Office,2020-04-16,04 CONTRACTORS,STRATEGIC INVESTMENT,SOLOS CONSULTANTS LTD,441162,10032,812035476
BEIS,Met Office,2020-04-16,04 CONTRACTORS,STRATEGIC INVESTMENT,SOLOS CONSULTANTS LTD,441106,11235.5,812035476
BEIS,Met Office,2020-04-16,04 CONTRACTORS,STRATEGIC INVESTMENT,SOLOS CONSULTANTS LTD,441157,16224,812035476
BEIS,Met Office,2020-04-16,04 CONTRACTORS,STRATEGIC INVESTMENT,SOLOS CONSULTANTS LTD,441124,17480.25,812035476
BEIS,Met Office,2020-04-16,04 CONTRACTORS,STRATEGIC INVESTMENT,SOLOS CONSULTANTS LTD,441098,18525,812035476
BEIS,Met Office,2020-04-16,04 CONTRACTORS,STRATEGIC INVESTMENT,SOLOS CONSULTANTS LTD,441119,22100,812035476
BEIS,Met Office,2020-04-02,11 SERVICES,STRATEGIC INVESTMENT,TORRY HARRIS BUSINESS SOLUTIONS (EUROPE) LTD,440684,7020,791095606
BEIS,Met Office,2020-04-09,11 SERVICES,STRATEGIC INVESTMENT,TORRY HARRIS BUSINESS SOLUTIONS (EUROPE) LTD,440750,11760,791095606
BEIS,Met Office,2020-04-16,04 CONTRACTORS,STRATEGIC INVESTMENT,WA CONSULTANTS LTD,441127,4531.1,876328977
BEIS,Met Office,2020-04-09,04 CONTRACTORS,STRATEGIC INVESTMENT,WA CONSULTANTS LTD,441001,6796.65,876328977
BEIS,Met Office,2020-04-09,04 CONTRACTORS,STRATEGIC INVESTMENT,WA CONSULTANTS LTD,440827,8951.2,876328977
BEIS,Met Office,2020-04-30,04 CONTRACTORS,STRATEGIC INVESTMENT,WA CONSULTANTS LTD,441663,11000,876328977
BEIS,Met Office,2020-04-23,11 SERVICES,TECHNOLOGY,2ND QUADRANT LTD,440941,21000,919761586
BEIS,Met Office,2020-04-09,11 SERVICES,TECHNOLOGY,A I MEDIA,441036,336,994262974
BEIS,Met Office,2020-04-01,11 SERVICES,TECHNOLOGY,AMAZON WEB SERVICES INC.,9732,-618.26,N/A
BEIS,Met Office,2020-04-01,11 SERVICES,TECHNOLOGY,AMAZON WEB SERVICES INC.,9735,605.65,N/A
BEIS,Met Office,2020-04-08,11 SERVICES,TECHNOLOGY,AMAZON WEB SERVICES INC.,9733,618.28,N/A
BEIS,Met Office,2020-04-01,11 SERVICES,TECHNOLOGY,AMAZON WEB SERVICES INC.,9731,11612.24,N/A
BEIS,Met Office,2020-04-01,11 SERVICES,TECHNOLOGY,AMAZON WEB SERVICES INC.,9730,66629.14,N/A
BEIS,Met Office,2020-04-16,10 EQUIPMENT MAINTENANCE,TECHNOLOGY,AXIAL SYSTEMS LTD,441263,16452,927444704
BEIS,Met Office,2020-04-02,11 SERVICES,TECHNOLOGY,BAE SYSTEMS APPLIED INTELLIGENCE LIMITED,440407,17439.86,GB641407169
BEIS,Met Office,2020-04-09,07 EQUIPMENT,TECHNOLOGY,CENTERPRISE INTERNATIONAL,440797,13270,849772272
BEIS,Met Office,2020-04-23,11 SERVICES,TECHNOLOGY,CLOUDREACH EUROPE LIMITED,441585,1395.76,978187168
BEIS,Met Office,2020-04-09,11 SERVICES,TECHNOLOGY,CLOUDREACH EUROPE LIMITED,440732,1439.99,978187168
BEIS,Met Office,2020-04-23,11 SERVICES,TECHNOLOGY,CLOUDREACH EUROPE LIMITED,441485,2224.18,978187168
BEIS,Met Office,2020-04-02,11 SERVICES,TECHNOLOGY,CLOUDREACH EUROPE LIMITED,440590,4000,978187168
BEIS,Met Office,2020-04-23,11 SERVICES,TECHNOLOGY,CLOUDREACH EUROPE LIMITED,441562,4000,978187168
BEIS,Met Office,2020-04-23,11 SERVICES,TECHNOLOGY,CLOUDREACH EUROPE LIMITED,441484,7110,978187168
BEIS,Met Office,2020-04-02,11 SERVICES,TECHNOLOGY,CLOUDREACH EUROPE LIMITED,440591,7167.11,978187168
BEIS,Met Office,2020-04-30,11 SERVICES,TECHNOLOGY,CLOUDREACH EUROPE LIMITED,441652,7333.36,978187168
BEIS,Met Office,2020-04-23,11 SERVICES,TECHNOLOGY,CLOUDREACH EUROPE LIMITED,441585,9640.02,978187168
BEIS,Met Office,2020-04-02,10 EQUIPMENT MAINTENANCE,TECHNOLOGY,COMPUTACENTER (UK) LTD,440433,723.99,490334648
BEIS,Met Office,2020-04-02,10 EQUIPMENT MAINTENANCE,TECHNOLOGY,COMPUTACENTER (UK) LTD,440433,2309.55,490334648
BEIS,Met Office,2020-04-30,10 EQUIPMENT MAINTENANCE,TECHNOLOGY,COMPUTACENTER (UK) LTD,441776,3202.07,490334648
BEIS,Met Office,2020-04-16,08 SOFTWARE LICENCES,TECHNOLOGY,COMPUTACENTER (UK) LTD,440798,5537.84,490334648
BEIS,Met Office,2020-04-02,08 SOFTWARE LICENCES,TECHNOLOGY,COMPUTACENTER (UK) LTD,440659,12823.83,490334648
BEIS,Met Office,2020-04-16,08 SOFTWARE LICENCES,TECHNOLOGY,COMPUTACENTER (UK) LTD,440798,16623.52,490334648
BEIS,Met Office,2020-04-30,INFORMATION TECHNOLOGY,TECHNOLOGY,COMPUTACENTER (UK) LTD,441786,19102.83,490334648
BEIS,Met Office,2020-04-02,08 SOFTWARE LICENCES,TECHNOLOGY,COMPUTACENTER (UK) LTD,440657,210336.13,490334648
BEIS,Met Office,2020-04-02,08 SOFTWARE LICENCES,TECHNOLOGY,COMPUWARE UK LIMITED,440685,6159,GB206253636
BEIS,Met Office,2020-04-16,04 CONTRACTORS,TECHNOLOGY,FDM GROUP LIMITED,441277,540,583540529
BEIS,Met Office,2020-04-16,04 CONTRACTORS,TECHNOLOGY,FDM GROUP LIMITED,441122,1080,583540529
BEIS,Met Office,2020-04-16,04 CONTRACTORS,TECHNOLOGY,FDM GROUP LIMITED,441238,4860,583540529
BEIS,Met Office,2020-04-16,04 CONTRACTORS,TECHNOLOGY,FDM GROUP LIMITED,441241,5130,583540529
BEIS,Met Office,2020-04-23,04 CONTRACTORS,TECHNOLOGY,FDM GROUP LIMITED,441373,5400,583540529
BEIS,Met Office,2020-04-23,04 CONTRACTORS,TECHNOLOGY,FDM GROUP LIMITED,441398,5400,583540529
BEIS,Met Office,2020-04-30,08 SOFTWARE LICENCES,TECHNOLOGY,GALTEC SOLUTIONS LTD,440307,6396.3,847233519
BEIS,Met Office,2020-04-02,11 SERVICES,TECHNOLOGY,GARTNER UK LTD,440656,29100,635878884
BEIS,Met Office,2020-04-02,11 SERVICES,TECHNOLOGY,GARTNER UK LTD,440656,55800,635878884
BEIS,Met Office,2020-04-23,04 CONTRACTORS,TECHNOLOGY,GCS IT RECRUITMENT SPECIALISTS LTD,441334,-3000,896156575
BEIS,Met Office,2020-04-16,04 CONTRACTORS,TECHNOLOGY,GCS IT RECRUITMENT SPECIALISTS LTD,441261,2275,896156575
BEIS,Met Office,2020-04-23,04 CONTRACTORS,TECHNOLOGY,GCS IT RECRUITMENT SPECIALISTS LTD,441336,3000,896156575
BEIS,Met Office,2020-04-16,04 CONTRACTORS,TECHNOLOGY,GCS IT RECRUITMENT SPECIALISTS LTD,441261,6825,896156575
BEIS,Met Office,2020-04-23,04 CONTRACTORS,TECHNOLOGY,GCS IT RECRUITMENT SPECIALISTS LTD,441333,10500,896156575
BEIS,Met Office,2020-04-23,08 SOFTWARE LICENCES,TECHNOLOGY,GOOGLE IRELAND LTD,440968,33.41,6388047V
BEIS,Met Office,2020-04-02,04 CONTRACTORS,TECHNOLOGY,HAYS SPECIALIST RECRUITMENT LTD,440404,392.6,773695871
BEIS,Met Office,2020-04-30,04 CONTRACTORS,TECHNOLOGY,HAYS SPECIALIST RECRUITMENT LTD,441661,498.3,773695871
BEIS,Met Office,2020-04-23,04 CONTRACTORS,TECHNOLOGY,HAYS SPECIALIST RECRUITMENT LTD,441387,520.95,773695871
BEIS,Met Office,2020-04-09,04 CONTRACTORS,TECHNOLOGY,HAYS SPECIALIST RECRUITMENT LTD,440812,611.55,773695871
BEIS,Met Office,2020-04-16,04 CONTRACTORS,TECHNOLOGY,HAYS SPECIALIST RECRUITMENT LTD,441252,619.1,773695871
BEIS,Met Office,2020-04-02,10 EQUIPMENT MAINTENANCE,TECHNOLOGY,Hewlett Packard Ltd,440472,737000,314149679
BEIS,Met Office,2020-04-09,08 SOFTWARE LICENCES,TECHNOLOGY,HUT 6 SECURITY LIMITED,440824,23760,277 2052 03
BEIS,Met Office,2020-04-23,11 SERVICES,TECHNOLOGY,IBM UNITED KINGDOM LTD,441559,6062.7,107328000
BEIS,Met Office,2020-04-16,08 SOFTWARE LICENCES,TECHNOLOGY,IBM UNITED KINGDOM LTD,440987,9789.7,107328000
BEIS,Met Office,2020-04-09,08 SOFTWARE LICENCES,TECHNOLOGY,INSIGHT DIRECT (UK) LTD,440859,7500,746075129
BEIS,Met Office,2020-04-09,08 SOFTWARE LICENCES,TECHNOLOGY,INSIGHT DIRECT (UK) LTD,440859,69000,746075129
BEIS,Met Office,2020-04-16,11 SERVICES,TECHNOLOGY,LRQA LTD,439255,5820,821176647
BEIS,Met Office,2020-04-02,11 SERVICES,TECHNOLOGY,NCC GROUP,440275,12995,732334556
BEIS,Met Office,2020-04-02,07 EQUIPMENT,TECHNOLOGY,NORBECK LTD,440298,1519.95,543334559
BEIS,Met Office,2020-04-02,08 SOFTWARE LICENCES,TECHNOLOGY,ORACLE CORPORATION UK LTD,440426,1214.02,391313073
BEIS,Met Office,2020-04-02,08 SOFTWARE LICENCES,TECHNOLOGY,ORACLE CORPORATION UK LTD,440428,1724.95,391313073
BEIS,Met Office,2020-04-02,08 SOFTWARE LICENCES,TECHNOLOGY,ORACLE CORPORATION UK LTD,440434,2723.48,391313073
BEIS,Met Office,2020-04-23,08 SOFTWARE LICENCES,TECHNOLOGY,ORACLE CORPORATION UK LTD,441554,3282.38,391313073
BEIS,Met Office,2020-04-02,08 SOFTWARE LICENCES,TECHNOLOGY,ORACLE CORPORATION UK LTD,440431,3506.45,391313073
BEIS,Met Office,2020-04-02,08 SOFTWARE LICENCES,TECHNOLOGY,ORACLE CORPORATION UK LTD,440425,3556.95,391313073
BEIS,Met Office,2020-04-16,10 EQUIPMENT MAINTENANCE,TECHNOLOGY,ORACLE CORPORATION UK LTD,441278,4172.99,391313073
BEIS,Met Office,2020-04-02,08 SOFTWARE LICENCES,TECHNOLOGY,ORACLE CORPORATION UK LTD,440471,4697.59,391313073
BEIS,Met Office,2020-04-02,08 SOFTWARE LICENCES,TECHNOLOGY,ORACLE CORPORATION UK LTD,440427,5898.21,391313073
BEIS,Met Office,2020-04-02,08 SOFTWARE LICENCES,TECHNOLOGY,ORACLE CORPORATION UK LTD,440429,7256.23,391313073
BEIS,Met Office,2020-04-02,08 SOFTWARE LICENCES,TECHNOLOGY,ORACLE CORPORATION UK LTD,440435,12732.42,391313073
BEIS,Met Office,2020-04-16,10 EQUIPMENT MAINTENANCE,TECHNOLOGY,ORACLE CORPORATION UK LTD,441131,15487.57,391313073
BEIS,Met Office,2020-04-16,10 EQUIPMENT MAINTENANCE,TECHNOLOGY,ORACLE CORPORATION UK LTD,441290,15487.57,391313073
BEIS,Met Office,2020-04-02,08 SOFTWARE LICENCES,TECHNOLOGY,ORACLE CORPORATION UK LTD,440436,18141.08,391313073
BEIS,Met Office,2020-04-23,10 EQUIPMENT MAINTENANCE,TECHNOLOGY,ORACLE CORPORATION UK LTD,441591,19389.61,391313073
BEIS,Met Office,2020-04-02,10 EQUIPMENT MAINTENANCE,TECHNOLOGY,ORACLE CORPORATION UK LTD,438941,23312.47,391313073
BEIS,Met Office,2020-04-30,10 EQUIPMENT MAINTENANCE,TECHNOLOGY,ORACLE CORPORATION UK LTD,441657,27851.2,391313073
BEIS,Met Office,2020-04-16,10 EQUIPMENT MAINTENANCE,TECHNOLOGY,ORACLE CORPORATION UK LTD,441132,33425.7,391313073
BEIS,Met Office,2020-04-16,10 EQUIPMENT MAINTENANCE,TECHNOLOGY,ORACLE CORPORATION UK LTD,441265,57053.15,391313073
BEIS,Met Office,2020-04-02,04 CONTRACTORS,TECHNOLOGY,OUTSOURCE UK LIMITED,440617,2473.1,576118722
BEIS,Met Office,2020-04-02,04 CONTRACTORS,TECHNOLOGY,OUTSOURCE UK LIMITED,440642,2989.15,576118722
BEIS,Met Office,2020-04-02,04 CONTRACTORS,TECHNOLOGY,OUTSOURCE UK LIMITED,440600,4050,576118722
BEIS,Met Office,2020-04-02,04 CONTRACTORS,TECHNOLOGY,OUTSOURCE UK LIMITED,440626,4512.86,576118722
BEIS,Met Office,2020-04-02,04 CONTRACTORS,TECHNOLOGY,OUTSOURCE UK LIMITED,440631,5430.1,576118722
BEIS,Met Office,2020-04-09,04 CONTRACTORS,TECHNOLOGY,OUTSOURCE UK LIMITED,440644,5914,576118722
BEIS,Met Office,2020-04-09,04 CONTRACTORS,TECHNOLOGY,OUTSOURCE UK LIMITED,440971,6543.2,576118722
BEIS,Met Office,2020-04-02,04 CONTRACTORS,TECHNOLOGY,OUTSOURCE UK LIMITED,440634,6750,576118722
BEIS,Met Office,2020-04-02,04 CONTRACTORS,TECHNOLOGY,OUTSOURCE UK LIMITED,440638,6750,576118722
BEIS,Met Office,2020-04-02,04 CONTRACTORS,TECHNOLOGY,OUTSOURCE UK LIMITED,440647,6750,576118722
BEIS,Met Office,2020-04-09,04 CONTRACTORS,TECHNOLOGY,OUTSOURCE UK LIMITED,440645,7287.12,576118722
BEIS,Met Office,2020-04-02,04 CONTRACTORS,TECHNOLOGY,OUTSOURCE UK LIMITED,440640,7419.3,576118722
BEIS,Met Office,2020-04-09,04 CONTRACTORS,TECHNOLOGY,OUTSOURCE UK LIMITED,440790,8100,576118722
BEIS,Met Office,2020-04-02,04 CONTRACTORS,TECHNOLOGY,OUTSOURCE UK LIMITED,440620,8200,576118722
BEIS,Met Office,2020-04-02,04 CONTRACTORS,TECHNOLOGY,OUTSOURCE UK LIMITED,440635,8625,576118722
BEIS,Met Office,2020-04-02,04 CONTRACTORS,TECHNOLOGY,OUTSOURCE UK LIMITED,440607,9892.4,576118722
BEIS,Met Office,2020-04-02,04 CONTRACTORS,TECHNOLOGY,OUTSOURCE UK LIMITED,440609,9900,576118722
BEIS,Met Office,2020-04-02,04 CONTRACTORS,TECHNOLOGY,OUTSOURCE UK LIMITED,440618,10223.39,576118722
BEIS,Met Office,2020-04-09,04 CONTRACTORS,TECHNOLOGY,OUTSOURCE UK LIMITED,440788,10349.5,576118722
BEIS,Met Office,2020-04-02,04 CONTRACTORS,TECHNOLOGY,OUTSOURCE UK LIMITED,440606,10800,576118722
BEIS,Met Office,2020-04-02,04 CONTRACTORS,TECHNOLOGY,OUTSOURCE UK LIMITED,440599,11250,576118722
BEIS,Met Office,2020-04-02,04 CONTRACTORS,TECHNOLOGY,OUTSOURCE UK LIMITED,440613,11946.22,576118722
BEIS,Met Office,2020-04-02,04 CONTRACTORS,TECHNOLOGY,OUTSOURCE UK LIMITED,440605,12312.72,576118722
BEIS,Met Office,2020-04-02,04 CONTRACTORS,TECHNOLOGY,OUTSOURCE UK LIMITED,440608,14375,576118722
BEIS,Met Office,2020-04-02,04 CONTRACTORS,TECHNOLOGY,OUTSOURCE UK LIMITED,440619,14489.3,576118722
BEIS,Met Office,2020-04-02,04 CONTRACTORS,TECHNOLOGY,OUTSOURCE UK LIMITED,440604,14945.75,576118722
BEIS,Met Office,2020-04-09,08 SOFTWARE LICENCES,TECHNOLOGY,PRESENTATION CARTOGRAPHY LTD,440857,1875,-
BEIS,Met Office,2020-04-09,08 SOFTWARE LICENCES,TECHNOLOGY,PRESENTATION CARTOGRAPHY LTD,440857,7775,-
BEIS,Met Office,2020-04-09,04 CONTRACTORS,TECHNOLOGY,QUALSERV CONSULTING LTD,440773,8162.4,719067718
BEIS,Met Office,2020-04-02,04 CONTRACTORS,TECHNOLOGY,QUALSERV CONSULTING LTD,440705,11966.54,719067718
BEIS,Met Office,2020-04-09,04 CONTRACTORS,TECHNOLOGY,QUALSERV CONSULTING LTD,440770,11970.46,719067718
BEIS,Met Office,2020-04-02,04 CONTRACTORS,TECHNOLOGY,QUALSERV CONSULTING LTD,440648,13362.54,719067718
BEIS,Met Office,2020-04-09,04 CONTRACTORS,TECHNOLOGY,QUALSERV CONSULTING LTD,440771,14915,719067718
BEIS,Met Office,2020-04-30,08 SOFTWARE LICENCES,TECHNOLOGY,QUEST SOFTWARE INTERNATIONAL LTD,441332,7442.5,581955404
BEIS,Met Office,2020-04-30,04 CONTRACTORS,TECHNOLOGY,REED,441766,6631.8,835515525
BEIS,Met Office,2020-04-30,04 CONTRACTORS,TECHNOLOGY,REED,441766,8092.8,835515525
BEIS,Met Office,2020-04-02,04 CONTRACTORS,TECHNOLOGY,REED,440592,8613,835515525
BEIS,Met Office,2020-04-02,04 CONTRACTORS,TECHNOLOGY,REED,440592,8763.45,835515525
BEIS,Met Office,2020-04-02,04 CONTRACTORS,TECHNOLOGY,REED,440592,8992,835515525
BEIS,Met Office,2020-04-30,04 CONTRACTORS,TECHNOLOGY,REED,441766,11691,835515525
BEIS,Met Office,2020-04-02,04 CONTRACTORS,TECHNOLOGY,REED,440592,12990,835515525
BEIS,Met Office,2020-04-30,04 CONTRACTORS,TECHNOLOGY,REED,441766,13206.6,835515525
BEIS,Met Office,2020-04-30,07 EQUIPMENT,TECHNOLOGY,RITTAL LTD,441394,192.88,308285849
BEIS,Met Office,2020-04-08,08 SOFTWARE LICENCES,TECHNOLOGY,SIGNAVIO GMBH,437230,6720,DE265675123
BEIS,Met Office,2020-04-16,11 SERVICES,TECHNOLOGY,SITEMORSE (UK SALES) LTD,441346,10500,928339691
BEIS,Met Office,2020-04-16,08 SOFTWARE LICENCES,TECHNOLOGY,SOFTWARE BOX LIMITED,440998,122,734245248
BEIS,Met Office,2020-04-16,08 SOFTWARE LICENCES,TECHNOLOGY,SOFTWARE BOX LIMITED,440998,180,734245248
BEIS,Met Office,2020-04-16,08 SOFTWARE LICENCES,TECHNOLOGY,SOFTWARE BOX LIMITED,440998,13140,734245248
BEIS,Met Office,2020-04-16,04 CONTRACTORS,TECHNOLOGY,SOLOS CONSULTANTS LTD,441116,1175.64,812035476
BEIS,Met Office,2020-04-16,04 CONTRACTORS,TECHNOLOGY,SOLOS CONSULTANTS LTD,441104,1640,812035476
BEIS,Met Office,2020-04-16,04 CONTRACTORS,TECHNOLOGY,SOLOS CONSULTANTS LTD,441116,7641.66,812035476
BEIS,Met Office,2020-04-16,04 CONTRACTORS,TECHNOLOGY,SOLOS CONSULTANTS LTD,441104,7837.4,812035476
BEIS,Met Office,2020-04-16,04 CONTRACTORS,TECHNOLOGY,SOLOS CONSULTANTS LTD,441135,8988.4,812035476
BEIS,Met Office,2020-04-16,04 CONTRACTORS,TECHNOLOGY,SOLOS CONSULTANTS LTD,441105,9742.01,812035476
BEIS,Met Office,2020-04-16,04 CONTRACTORS,TECHNOLOGY,SOLOS CONSULTANTS LTD,441091,10176,812035476
BEIS,Met Office,2020-04-16,04 CONTRACTORS,TECHNOLOGY,SOLOS CONSULTANTS LTD,441102,10786.08,812035476
BEIS,Met Office,2020-04-16,04 CONTRACTORS,TECHNOLOGY,SOLOS CONSULTANTS LTD,441082,11990.16,812035476
BEIS,Met Office,2020-04-16,04 CONTRACTORS,TECHNOLOGY,SOLOS CONSULTANTS LTD,441084,12169.44,812035476
BEIS,Met Office,2020-04-16,04 CONTRACTORS,TECHNOLOGY,SOLOS CONSULTANTS LTD,441085,12810.01,812035476
BEIS,Met Office,2020-04-16,04 CONTRACTORS,TECHNOLOGY,SOLOS CONSULTANTS LTD,441221,14368.75,812035476
BEIS,Met Office,2020-04-16,04 CONTRACTORS,TECHNOLOGY,SOLOS CONSULTANTS LTD,441092,14682.25,812035476
BEIS,Met Office,2020-04-16,04 CONTRACTORS,TECHNOLOGY,SOLOS CONSULTANTS LTD,441121,15900,812035476
BEIS,Met Office,2020-04-16,04 CONTRACTORS,TECHNOLOGY,SOLOS CONSULTANTS LTD,441126,16250,812035476
BEIS,Met Office,2020-04-16,04 CONTRACTORS,TECHNOLOGY,SOLOS CONSULTANTS LTD,441093,16981.25,812035476
BEIS,Met Office,2020-04-16,04 CONTRACTORS,TECHNOLOGY,SOLOS CONSULTANTS LTD,441101,18810,812035476
BEIS,Met Office,2020-04-16,04 CONTRACTORS,TECHNOLOGY,SOLOS CONSULTANTS LTD,441171,23400,812035476
BEIS,Met Office,2020-04-09,11 SERVICES,TECHNOLOGY,SSE CONTRACTING LTD,440807,9817.36,570118464
BEIS,Met Office,2020-04-16,11 SERVICES,TECHNOLOGY,SYNTHESYS SYSTEMS ENGINEERS LTD,441018,2612.25,499309492
BEIS,Met Office,2020-04-09,11 SERVICES,TECHNOLOGY,UKCLOUD LTD,440749,1715.81,172647982
BEIS,Met Office,2020-04-29,08 SOFTWARE LICENCES,TECHNOLOGY,URBAN AIRSHIP INC.,441283,168.94,-
BEIS,Met Office,2020-04-09,04 CONTRACTORS,TECHNOLOGY,WA CONSULTANTS LTD,440751,5450,876328977
BEIS,Met Office,2020-04-16,04 CONTRACTORS,TECHNOLOGY,WA CONSULTANTS LTD,441123,6500,876328977
BEIS,Met Office,2020-04-02,04 CONTRACTORS,TECHNOLOGY,WA CONSULTANTS LTD,440576,9265,876328977
BEIS,Met Office,2020-04-09,04 CONTRACTORS,TECHNOLOGY,WA CONSULTANTS LTD,440822,10215.5,876328977
BEIS,Met Office,2020-04-02,04 CONTRACTORS,TECHNOLOGY,WA CONSULTANTS LTD,440577,10710,876328977
BEIS,Met Office,2020-04-02,04 CONTRACTORS,TECHNOLOGY,WA CONSULTANTS LTD,440572,10761,876328977
BEIS,Met Office,2020-04-09,04 CONTRACTORS,TECHNOLOGY,WA CONSULTANTS LTD,440758,11305,876328977
BEIS,Met Office,2020-04-09,04 CONTRACTORS,TECHNOLOGY,WA CONSULTANTS LTD,440747,11369.2,876328977
BEIS,Met Office,2020-04-09,04 CONTRACTORS,TECHNOLOGY,WA CONSULTANTS LTD,440757,11636.6,876328977
BEIS,Met Office,2020-04-23,04 CONTRACTORS,TECHNOLOGY,WA CONSULTANTS LTD,441469,11847.66,876328977
BEIS,Met Office,2020-04-09,04 CONTRACTORS,TECHNOLOGY,WA CONSULTANTS LTD,441019,12669,876328977
BEIS,Met Office,2020-04-02,04 CONTRACTORS,TECHNOLOGY,WA CONSULTANTS LTD,440580,14250,876328977
BEIS,Met Office,2020-04-02,04 CONTRACTORS,TECHNOLOGY,WA CONSULTANTS LTD,440573,15000,876328977
BEIS,Met Office,2020-04-16,07 EQUIPMENT,TECHNOLOGY,WESTERMO DATA COMMUNICATIONS LTD,441130,12.5,656570708
BEIS,Met Office,2020-04-16,07 EQUIPMENT,TECHNOLOGY,WESTERMO DATA COMMUNICATIONS LTD,441130,81.6,656570708
BEIS,Met Office,2020-04-16,07 EQUIPMENT,TECHNOLOGY,WESTERMO DATA COMMUNICATIONS LTD,441130,1341.3,656570708
BEIS,Met Office,2020-04-09,11 SERVICES,TECHNOLOGY,WIREFAST LTD,440736,143.34,749536001
BEIS,Met Office,2020-04-09,11 SERVICES,TECHNOLOGY,WIREFAST LTD,440737,4714.47,749536001
